Workbook

Sheet INGRESO DE DATOS
A10: 1. INGRESE LOS DATOS DEL PROPUESTO ASEGURADO:
C12: Nombre del Asegurado Principal: | D12: Nombre
D14: Número de Adultos: | G14: 2 | H14: Número de Hijos: | J14: 3
F16: Edad de Titular: | G16: 65 | H16: Edad de Cónyuge: | J16: 18
F18: Descuento: | G18: 0
A21: 2. INGRESE EL NOMBRE DE LA AGENCIA ASESORA:
C23: Intermediario: | D23: Agente / Agencia
A27: 3. ESCOJA EL PRODUCTO PARA VISUALIZAR LA COTIZACION RESPECTIVA:

Sheet Complete
D8: Cotización de Seguro Médico Internacional
D9: Producto: Bupa Complete Care
A10: BUPA COMPLETE CARE
D12: Nombre del Asegurado: | E12: =+'INGRESO DE DATOS'!$D$12 -> Nombre
D14: Intermediario: | E14: =+'INGRESO DE DATOS'!$D$23 -> Agente / Agencia
D16: Fecha: | E16: =+TODAY() -> 2021-12-20 | G16: =IF('INGRESO DE DATOS'!G18>0,"Descuento","") ->  | H16: =IF('INGRESO DE DATOS'!G18>0,'INGRESO DE DATOS'!G18,"") -> 
F18: Numero de Adultos: | G18: =+'INGRESO DE DATOS'!G14 -> 2 | I18: Edad de Titular: | J18: =+'INGRESO DE DATOS'!$G$16 -> 65
F20: Numero de Hijos: | G20: =+'INGRESO DE DATOS'!$J$14 -> 3 | I20: Edad de Conyuge: | J20: =+'INGRESO DE DATOS'!$J$16 -> 18
H22: Complicaciones de Maternidad (+ $500,000)
H23: FALSE
D24: Deducibles
E25: PLAN 1 | F25: PLAN 2 | G25: PLAN 3 | H25: PLAN 4 | I25: PLAN 5 | J25: PLAN 6
D26: Dentro del pais de residencia | E26: n/a | F26: 1000 | G26: 2000 | H26: 5000 | I26: 10000 | J26: 20000
D27: Fuera del pais de residencia | E27: n/a | F27: 2000 | G27: 3000 | H27: 5000 | I27: 10000 | J27: 20000
D29: Tarifas Anuales
D30: Prima Titular | E30: n/a | F30: =VLOOKUP($J$18,Tablas!$A$6:$H$29,4,TRUE) -> 42627 | G30: =VLOOKUP($J$18,Tablas!$A$6:$H$29,5,TRUE) -> 30133 | H30: =VLOOKUP($J$18,Tablas!$A$6:$H$29,6,TRUE) -> 22612 | I30: =VLOOKUP($J$18,Tablas!$A$6:$H$29,7,TRUE) -> 20003 | J30: =VLOOKUP($J$18,Tablas!$A$6:$H$29,8,TRUE) -> 17004
D31: Prima Cónyuge | E31: n/a | F31: =IF($G$18=1,0,(VLOOKUP($J$20,Tablas!$A$6:$H$29,4,TRUE))) -> 10023 | G31: =IF($G$18=1,0,(VLOOKUP($J$20,Tablas!$A$6:$H$29,5,TRUE))) -> 6865 | H31: =IF($G$18=1,0,(VLOOKUP($J$20,Tablas!$A$6:$H$29,6,TRUE))) -> 4819 | I31: =IF($G$18=1,0,(VLOOKUP($J$20,Tablas!$A$6:$H$29,7,TRUE))) -> 3326 | J31: =IF($G$18=1,0,(VLOOKUP($J$20,Tablas!$A$6:$H$29,8,TRUE))) -> 2542
D32: Primas Hijos | E32: n/a | F32: =IF($G$20=0,0,(VLOOKUP($G$20,Tablas!$A$30:$H$32,4,TRUE))) -> 8099 | G32: =IF($G$20=0,0,(VLOOKUP($G$20,Tablas!$A$30:$H$32,5,TRUE))) -> 5905 | H32: =IF($G$20=0,0,(VLOOKUP($G$20,Tablas!$A$30:$H$32,6,TRUE))) -> 4553 | I32: =IF($G$20=0,0,(VLOOKUP($G$20,Tablas!$A$30:$H$32,7,TRUE))) -> 3714 | J32: =IF($G$20=0,0,(VLOOKUP($G$20,Tablas!$A$30:$H$32,8,TRUE))) -> 2741
D33: Anexo: Complicaciones de Maternidad | E33: n/a | F33: =+IF($H$23=FALSE,0,Tablas!D$33) -> 0 | G33: =+IF($H$23=FALSE,0,Tablas!E$33) -> 0 | H33: =+IF($H$23=FALSE,0,Tablas!F$33) -> 0 | I33: =+IF($H$23=FALSE,0,Tablas!G$33) -> 0 | J33: =+IF($H$23=FALSE,0,Tablas!H$33) -> 0
D34: PRIMA NETA | E34: n/a | F34: =SUM(F30:F33) -> 60749 | G34: =SUM(G30:G33) -> 42903 | H34: =SUM(H30:H33) -> 31984 | I34: =SUM(I30:I33) -> 27043 | J34: =SUM(J30:J33) -> 22287
D35: =IF('INGRESO DE DATOS'!G18>0,"Descuento","") ->  | E35: n/a | F35: =IF('INGRESO DE DATOS'!$G$18>0,-(F30+F31+F32)*'INGRESO DE DATOS'!$G$18,0) -> 0 | G35: =IF('INGRESO DE DATOS'!$G$18>0,-(G30+G31+G32)*'INGRESO DE DATOS'!$G$18,0) -> 0 | H35: =IF('INGRESO DE DATOS'!$G$18>0,-(H30+H31+H32)*'INGRESO DE DATOS'!$G$18,0) -> 0 | I35: =IF('INGRESO DE DATOS'!$G$18>0,-(I30+I31+I32)*'INGRESO DE DATOS'!$G$18,0) -> 0 | J35: =IF('INGRESO DE DATOS'!$G$18>0,-(J30+J31+J32)*'INGRESO DE DATOS'!$G$18,0) -> 0
D36: Costo Administrativo Anual | E36: n/a | F36: 75 | G36: 75 | H36: 75 | I36: 75 | J36: 75
D37: IVA (12%) | E37: n/a | F37: =+(F34+F35+F36)*12% -> 7298.88 | G37: =+(G34+G35+G36)*12% -> 5157.36 | H37: 3847.08 | I37: 3254.16 | J37: =+(J34+J35+J36)*12% -> 2683.44
D38: TOTAL | E38: n/a | F38: =SUM(F34:F37) -> 68122.88 | G38: =SUM(G34:G37) -> 48135.36 | H38: 35906.08 | I38: 30372.16 | J38: =SUM(J34:J37) -> 25045.44
D40: Tarifas Semestrales
D41: Prima Titular | E41: n/a | F41: =VLOOKUP($J$18,Tablas!$A$39:$H$62,4,TRUE) -> 22592.31 | G41: =VLOOKUP($J$18,Tablas!$A$39:$H$62,5,TRUE) -> 15970.49 | H41: =VLOOKUP($J$18,Tablas!$A$39:$H$62,6,TRUE) -> 11984.36 | I41: =VLOOKUP($J$18,Tablas!$A$39:$H$62,7,TRUE) -> 10601.59 | J41: =VLOOKUP($J$18,Tablas!$A$39:$H$62,8,TRUE) -> 9012.12
D42: Prima Cónyuge | E42: n/a | F42: =IF($G$18=1,0,(VLOOKUP($J$20,Tablas!$A$39:$H$62,4,TRUE))) -> 5312.19 | G42: =IF($G$18=1,0,(VLOOKUP($J$20,Tablas!$A$39:$H$62,5,TRUE))) -> 3638.45 | H42: =IF($G$18=1,0,(VLOOKUP($J$20,Tablas!$A$39:$H$62,6,TRUE))) -> 2554.07 | I42: =IF($G$18=1,0,(VLOOKUP($J$20,Tablas!$A$39:$H$62,7,TRUE))) -> 1762.78 | J42: =IF($G$18=1,0,(VLOOKUP($J$20,Tablas!$A$39:$H$62,8,TRUE))) -> 1347.26
D43: Primas Hijos | E43: n/a | F43: =IF($G$20=0,0,(VLOOKUP($G$20,Tablas!$A$63:$H$65,4,TRUE))) -> 4292.47 | G43: =IF($G$20=0,0,(VLOOKUP($G$20,Tablas!$A$63:$H$65,5,TRUE))) -> 3129.65 | H43: =IF($G$20=0,0,(VLOOKUP($G$20,Tablas!$A$63:$H$65,6,TRUE))) -> 2413.09 | I43: =IF($G$20=0,0,(VLOOKUP($G$20,Tablas!$A$63:$H$65,7,TRUE))) -> 1968.42 | J43: =IF($G$20=0,0,(VLOOKUP($G$20,Tablas!$A$63:$H$65,8,TRUE))) -> 1452.73
D44: Anexo: Complicaciones de Maternidad | E44: n/a | F44: =+IF($F$23=FALSE,0,Tablas!D$66) -> 0 | G44: =+IF($F$23=FALSE,0,Tablas!E$66) -> 0 | H44: =+IF($F$23=FALSE,0,Tablas!F$66) -> 0 | I44: =+IF($F$23=FALSE,0,Tablas!G$66) -> 0 | J44: =+IF($F$23=FALSE,0,Tablas!H$66) -> 0
D45: PRIMA NETA | E45: n/a | F45: =SUM(F41:F44) -> 32196.97 | G45: =SUM(G41:G44) -> 22738.59 | H45: =SUM(H41:H44) -> 16951.52 | I45: =SUM(I41:I44) -> 14332.79 | J45: =SUM(J41:J44) -> 11812.11
D46: =IF('INGRESO DE DATOS'!G18>0,"Descuento","") ->  | E46: n/a | F46: =IF('INGRESO DE DATOS'!$G$18>0,-(F41+F42+F43)*'INGRESO DE DATOS'!$G$18,0) -> 0 | G46: =IF('INGRESO DE DATOS'!$G$18>0,-(G41+G42+G43)*'INGRESO DE DATOS'!$G$18,0) -> 0 | H46: =IF('INGRESO DE DATOS'!$G$18>0,-(H41+H42+H43)*'INGRESO DE DATOS'!$G$18,0) -> 0 | I46: =IF('INGRESO DE DATOS'!$G$18>0,-(I41+I42+I43)*'INGRESO DE DATOS'!$G$18,0) -> 0 | J46: =IF('INGRESO DE DATOS'!$G$18>0,-(J41+J42+J43)*'INGRESO DE DATOS'!$G$18,0) -> 0
D47: Costo Administrativo Anual | E47: n/a | F47: 75 | G47: 75 | H47: 75 | I47: 75 | J47: 75
D48: IVA (12%) | E48: n/a | F48: =+(F45+F46+F47)*12% -> 3872.6364 | G48: =+(G45+G46+G47)*12% -> 2737.6308 | H48: 2043.1824 | I48: 1728.9348 | J48: =+(J45+J46+J47)*12% -> 1426.4532
D49: TOTAL (1ra Cuota) | E49: n/a | F49: =SUM(F45:F48) -> 36144.6064 | G49: =SUM(G45:G48) -> 25551.2208 | H49: =SUM(H45:H48) -> 19069.7024 | I49: =SUM(I45:I48) -> 16136.7248 | J49: =SUM(J45:J48) -> 13313.5632
D50: TOTAL (2da Cuota) | E50: n/a | F50: =F45+F46+F48-(F47*0.12) -> 36060.6064 | G50: =G45+G46+G48-(G47*0.12) -> 25467.2208 | H50: 18985.7024 | I50: 16052.7248 | J50: =J45+J46+J48-(J47*0.12) -> 13229.5632
D52: Tarifas Semestrales
D53: Prima Titular | E53: n/a | F53: =VLOOKUP($J$18,Tablas!$A$923:$H$946,4,TRUE) -> 11722.425 | G53: =VLOOKUP($J$18,Tablas!$A$923:$H$946,5,TRUE) -> 8286.575 | H53: =VLOOKUP($J$18,Tablas!$A$923:$H$946,6,TRUE) -> 6218.3 | I53: =VLOOKUP($J$18,Tablas!$A$923:$H$946,7,TRUE) -> 5500.825 | J53: =VLOOKUP($J$18,Tablas!$A$923:$H$946,8,TRUE) -> 4676.1
D54: Prima Cónyuge | E54: n/a | F54: =IF($G$18=1,0,(VLOOKUP($J$20,Tablas!$A$923:$H$946,4,TRUE))) -> 2756.325 | G54: =IF($G$18=1,0,(VLOOKUP($J$20,Tablas!$A$923:$H$946,5,TRUE))) -> 1887.875 | H54: =IF($G$18=1,0,(VLOOKUP($J$20,Tablas!$A$923:$H$946,6,TRUE))) -> 1325.225 | I54: =IF($G$18=1,0,(VLOOKUP($J$20,Tablas!$A$923:$H$946,7,TRUE))) -> 914.65 | J54: =IF($G$18=1,0,(VLOOKUP($J$20,Tablas!$A$923:$H$946,8,TRUE))) -> 699.05
D55: Primas Hijos | E55: n/a | F55: =IF($G$20=0,0,(VLOOKUP($G$20,Tablas!$A$947:$H$949,4,TRUE))) -> 2227.225 | G55: =IF($G$20=0,0,(VLOOKUP($G$20,Tablas!$A$63:$H$65,5,TRUE))) -> 3129.65 | H55: =IF($G$20=0,0,(VLOOKUP($G$20,Tablas!$A$63:$H$65,6,TRUE))) -> 2413.09 | I55: =IF($G$20=0,0,(VLOOKUP($G$20,Tablas!$A$63:$H$65,7,TRUE))) -> 1968.42 | J55: =IF($G$20=0,0,(VLOOKUP($G$20,Tablas!$A$63:$H$65,8,TRUE))) -> 1452.73
D56: Anexo: Complicaciones de Maternidad | E56: n/a | F56: =+IF($F$23=FALSE,0,Tablas!D$950) -> 0 | G56: =+IF($F$23=FALSE,0,Tablas!E$950) -> 0 | H56: =+IF($F$23=FALSE,0,Tablas!F$950) -> 0 | I56: =+IF($F$23=FALSE,0,Tablas!G$950) -> 0 | J56: =+IF($F$23=FALSE,0,Tablas!H$950) -> 0
D57: PRIMA NETA | E57: n/a | F57: =SUM(F53:F56) -> 16705.975 | G57: =SUM(G53:G56) -> 13304.1 | H57: =SUM(H53:H56) -> 9956.615 | I57: =SUM(I53:I56) -> 8383.895 | J57: =SUM(J53:J56) -> 6827.88
D58: =IF('INGRESO DE DATOS'!G32>0,"Descuento","") ->  | E58: n/a | F58: =IF('INGRESO DE DATOS'!$G$18>0,-(F53+F54+F55)*'INGRESO DE DATOS'!$G$18,0) -> 0 | G58: =IF('INGRESO DE DATOS'!$G$18>0,-(G53+G54+G55)*'INGRESO DE DATOS'!$G$18,0) -> 0 | H58: =IF('INGRESO DE DATOS'!$G$18>0,-(H53+H54+H55)*'INGRESO DE DATOS'!$G$18,0) -> 0 | I58: =IF('INGRESO DE DATOS'!$G$18>0,-(I53+I54+I55)*'INGRESO DE DATOS'!$G$18,0) -> 0 | J58: =IF('INGRESO DE DATOS'!$G$18>0,-(J53+J54+J55)*'INGRESO DE DATOS'!$G$18,0) -> 0
D59: Costo Administrativo Anual | E59: n/a | F59: 75 | G59: 75 | H59: 75 | I59: 75 | J59: 75
D60: IVA (12%) | E60: n/a | F60: =+(F57+F58+F59)*12% -> 2013.717 | G60: =+(G57+G58+G59)*12% -> 1605.492 | H60: 1203.7938 | I60: 1015.0674 | J60: =+(J57+J58+J59)*12% -> 828.3456
D61: TOTAL (1ra Cuota) | E61: n/a | F61: =SUM(F57:F60) -> 18794.692 | G61: =SUM(G57:G60) -> 14984.592 | H61: =SUM(H57:H60) -> 11235.4088 | I61: =SUM(I57:I60) -> 9473.9624 | J61: =SUM(J57:J60) -> 7731.2256
D62: TOTAL (2da a 4ta Cuota) | E62: n/a | F62: =F57+F58+F60-(F59*0.12) -> 18710.692 | G62: =G57+G58+G60-(G59*0.12) -> 14900.592 | H62: 11151.4088 | I62: 9389.9624 | J62: =J57+J58+J60-(J59*0.12) -> 7647.2256
D64: Tarifas en US $ - Válidas desde 01 Ene 2022
D65: Este presupuesto solamente tiene carácter informativo y en ningún momento expresa compromiso legal para suministrarle cobertura de seguro. La emisión de una póliza de seguro Bupa está sujeta a todas las evaluaciones de riesgo por parte de Bupa y a la recepción de todos los pagos de prima requeridos.

Sheet Secure
D8: Cotización de Seguro Médico Internacional
D9: Producto: Bupa Secure Care
A10: BUPA SECURE CARE
D12: Nombre del Asegurado: | E12: =+'INGRESO DE DATOS'!$D$12 -> Nombre
D14: Intermediario: | E14: =+'INGRESO DE DATOS'!$D$23 -> Agente / Agencia
D16: Fecha: | E16: =+TODAY() -> 2021-12-20 | G16: =IF('INGRESO DE DATOS'!G18>0,"Descuento","") ->  | H16: =IF('INGRESO DE DATOS'!G18>0,'INGRESO DE DATOS'!G18,"") -> 
F18: Numero de Adultos: | G18: =+'INGRESO DE DATOS'!$G$14 -> 2 | I18: Edad de Titular: | J18: =+'INGRESO DE DATOS'!$G$16 -> 65
F20: Numero de Hijos: | G20: =+'INGRESO DE DATOS'!$J$14 -> 3 | I20: Edad de Conyuge: | J20: =+'INGRESO DE DATOS'!$J$16 -> 18
F22: FALSE | H22: Complicaciones de Maternidad (+ $500,000)
F24: FALSE | G24: FALSE | H24: Trasplante de Órganos (+ $500,000)
D26: Deducibles
E27: PLAN 1 | F27: PLAN 2 | G27: PLAN 3 | H27: PLAN 4 | I27: PLAN 5 | J27: PLAN 6
D28: Dentro del pais de residencia | E28: n/a | F28: 1000 | G28: 2000 | H28: 5000 | I28: 10000 | J28: 20000
D29: Fuera del pais de residencia | E29: n/a | F29: 2000 | G29: 3000 | H29: 5000 | I29: 10000 | J29: 20000
D31: Tarifas Anuales
D32: Prima Titular | E32: n/a | F32: =VLOOKUP($J$18,Tablas!$A$140:$H$163,4,TRUE) -> 17795 | G32: =VLOOKUP($J$18,Tablas!$A$140:$H$163,5,TRUE) -> 16196 | H32: =VLOOKUP($J$18,Tablas!$A$140:$H$163,6,TRUE) -> 11378 | I32: =VLOOKUP($J$18,Tablas!$A$140:$H$163,7,TRUE) -> 9569 | J32: =VLOOKUP($J$18,Tablas!$A$140:$H$163,8,TRUE) -> 7138
D33: Prima Cónyuge | E33: n/a | F33: =IF($G$18=1,0,(VLOOKUP($J$20,Tablas!$A$140:$H$163,4,TRUE))) -> 4901 | G33: =IF($G$18=1,0,(VLOOKUP($J$20,Tablas!$A$140:$H$163,5,TRUE))) -> 3837 | H33: =IF($G$18=1,0,(VLOOKUP($J$20,Tablas!$A$140:$H$163,6,TRUE))) -> 2861 | I33: =IF($G$18=1,0,(VLOOKUP($J$20,Tablas!$A$140:$H$163,7,TRUE))) -> 2432 | J33: =IF($G$18=1,0,(VLOOKUP($J$20,Tablas!$A$140:$H$163,8,TRUE))) -> 1822
D34: Primas Hijos | E34: n/a | F34: =IF($G$20=0,0,(VLOOKUP($G$20,Tablas!$A$164:$H$166,4,TRUE))) -> 5860 | G34: =IF($G$20=0,0,(VLOOKUP($G$20,Tablas!$A$164:$H$166,5,TRUE))) -> 2986 | H34: =IF($G$20=0,0,(VLOOKUP($G$20,Tablas!$A$164:$H$166,6,TRUE))) -> 2651 | I34: =IF($G$20=0,0,(VLOOKUP($G$20,Tablas!$A$164:$H$166,7,TRUE))) -> 2227 | J34: =IF($G$20=0,0,(VLOOKUP($G$20,Tablas!$A$164:$H$166,8,TRUE))) -> 1673
D35: Anexo: Complicaciones de Maternidad | E35: n/a | F35: =+IF($F$22=FALSE,0,Tablas!D$167) -> 0 | G35: =+IF($F$22=FALSE,0,Tablas!E$167) -> 0 | H35: =+IF($F$22=FALSE,0,Tablas!F$167) -> 0 | I35: =+IF($F$22=FALSE,0,Tablas!G$167) -> 0 | J35: =+IF($F$22=FALSE,0,Tablas!H$167) -> 0
D36: Anexo: Trasplante Organos | E36: n/a | F36: =IF($F$24=FALSE,0,Tablas!D$341) -> 0 | G36: =IF($F$24=FALSE,0,Tablas!E$341) -> 0 | H36: =IF($F$24=FALSE,0,Tablas!F$341) -> 0 | I36: =IF($F$24=FALSE,0,Tablas!G$341) -> 0 | J36: =IF($F$24=FALSE,0,Tablas!H$341) -> 0
D37: PRIMA NETA | E37: n/a | F37: =SUM(F32:F36) -> 28556 | G37: =SUM(G32:G36) -> 23019 | H37: 16890 | I37: 14228 | J37: 10633
D38: =IF('INGRESO DE DATOS'!G18>0,"Descuento","") ->  | E38: n/a | F38: =IF('INGRESO DE DATOS'!$G$18>0,-(F32+F33+F34)*'INGRESO DE DATOS'!$G$18,0) -> 0 | G38: =IF('INGRESO DE DATOS'!$G$18>0,-(G32+G33+G34)*'INGRESO DE DATOS'!$G$18,0) -> 0 | H38: =IF('INGRESO DE DATOS'!$G$18>0,-(H32+H33+H34)*'INGRESO DE DATOS'!$G$18,0) -> 0 | I38: =IF('INGRESO DE DATOS'!$G$18>0,-(I32+I33+I34)*'INGRESO DE DATOS'!$G$18,0) -> 0 | J38: =IF('INGRESO DE DATOS'!$G$18>0,-(J32+J33+J34)*'INGRESO DE DATOS'!$G$18,0) -> 0
D39: Costo Administrativo Anual | E39: n/a | F39: 75 | G39: 75 | H39: 75 | I39: 75 | J39: 75
D40: IVA (12%) | E40: n/a | F40: =+(F37+F38+F39)*12% -> 3435.72 | G40: =+(G37+G38+G39)*12% -> 2771.28 | H40: 2035.8 | I40: 1716.36 | J40: =+(J37+J38+J39)*12% -> 1284.96
D41: TOTAL | E41: n/a | F41: =SUM(F37:F40) -> 32066.72 | G41: =SUM(G37:G40) -> 25865.28 | H41: =SUM(H37:H40) -> 19000.8 | I41: =SUM(I37:I40) -> 16019.36 | J41: =SUM(J37:J40) -> 11992.96
D43: Tarifas Semestrales
D44: Prima Titular | E44: n/a | F44: =VLOOKUP($J$18,Tablas!$A$173:$H$196,4,TRUE) -> 9431.35 | G44: =VLOOKUP($J$18,Tablas!$A$173:$H$196,5,TRUE) -> 8583.88 | H44: =VLOOKUP($J$18,Tablas!$A$173:$H$196,6,TRUE) -> 6030.34 | I44: =VLOOKUP($J$18,Tablas!$A$173:$H$196,7,TRUE) -> 5071.57 | J44: =VLOOKUP($J$18,Tablas!$A$173:$H$196,8,TRUE) -> 3783.14
D45: Prima Cónyuge | E45: n/a | F45: =IF($G$18=1,0,(VLOOKUP($J$20,Tablas!$A$173:$H$196,4,TRUE))) -> 2597.53 | G45: =IF($G$18=1,0,(VLOOKUP($J$20,Tablas!$A$173:$H$196,5,TRUE))) -> 2033.61 | H45: =IF($G$18=1,0,(VLOOKUP($J$20,Tablas!$A$173:$H$196,6,TRUE))) -> 1516.33 | I45: =IF($G$18=1,0,(VLOOKUP($J$20,Tablas!$A$173:$H$196,7,TRUE))) -> 1288.96 | J45: =IF($G$18=1,0,(VLOOKUP($J$20,Tablas!$A$173:$H$196,8,TRUE))) -> 965.66
D46: Primas Hijos | E46: n/a | F46: =IF($G$20=0,0,(VLOOKUP($G$20,Tablas!$A$197:$H$199,4,TRUE))) -> 3105.8 | G46: =IF($G$20=0,0,(VLOOKUP($G$20,Tablas!$A$197:$H$199,5,TRUE))) -> 1582.58 | H46: =IF($G$20=0,0,(VLOOKUP($G$20,Tablas!$A$197:$H$199,6,TRUE))) -> 1405.03 | I46: =IF($G$20=0,0,(VLOOKUP($G$20,Tablas!$A$197:$H$199,7,TRUE))) -> 1180.31 | J46: =IF($G$20=0,0,(VLOOKUP($G$20,Tablas!$A$197:$H$199,8,TRUE))) -> 886.69
D47: Anexo: Complicaciones de Maternidad | E47: n/a | F47: =+IF($F$22=FALSE,0,Tablas!D$200) -> 0 | G47: =+IF($F$22=FALSE,0,Tablas!E$200) -> 0 | H47: =+IF($F$22=FALSE,0,Tablas!F$200) -> 0 | I47: =+IF($F$22=FALSE,0,Tablas!G$200) -> 0 | J47: =+IF($F$22=FALSE,0,Tablas!H$200) -> 0
D48: Anexo: Trasplante Organos | E48: n/a | F48: =IF($F$24=FALSE,0,Tablas!D$413) -> 0 | G48: =IF($F$24=FALSE,0,Tablas!E$413) -> 0 | H48: =IF($F$24=FALSE,0,Tablas!F$413) -> 0 | I48: =IF($F$24=FALSE,0,Tablas!G$413) -> 0 | J48: =IF($F$24=FALSE,0,Tablas!H$413) -> 0
D49: PRIMA NETA | E49: n/a | F49: =SUM(F44:F48) -> 15134.68 | G49: =SUM(G44:G48) -> 12200.07 | H49: 8951.7 | I49: 7540.84 | J49: 5635.49
D50: =IF('INGRESO DE DATOS'!G18>0,"Descuento","") ->  | E50: n/a | F50: =IF('INGRESO DE DATOS'!$G$18>0,-(F44+F45+F46)*'INGRESO DE DATOS'!$G$18,0) -> 0 | G50: =IF('INGRESO DE DATOS'!$G$18>0,-(G44+G45+G46)*'INGRESO DE DATOS'!$G$18,0) -> 0 | H50: =IF('INGRESO DE DATOS'!$G$18>0,-(H44+H45+H46)*'INGRESO DE DATOS'!$G$18,0) -> 0 | I50: =IF('INGRESO DE DATOS'!$G$18>0,-(I44+I45+I46)*'INGRESO DE DATOS'!$G$18,0) -> 0 | J50: =IF('INGRESO DE DATOS'!$G$18>0,-(J44+J45+J46)*'INGRESO DE DATOS'!$G$18,0) -> 0
D51: Costo Administrativo Anual | E51: n/a | F51: 75 | G51: 75 | H51: 75 | I51: 75 | J51: 75
D52: IVA (12%) | E52: n/a | F52: =+(F49+F50+F51)*12% -> 1825.1616 | G52: =+(G49+G50+G51)*12% -> 1473.0084 | H52: 1083.204 | I52: 913.9008 | J52: =+(J49+J50+J51)*12% -> 685.2588
D53: TOTAL (1ra Cuota) | E53: n/a | F53: =SUM(F49:F52) -> 17034.8416 | G53: =SUM(G49:G52) -> 13748.0784 | H53: =SUM(H49:H52) -> 10109.904 | I53: =SUM(I49:I52) -> 8529.7408 | J53: =SUM(J49:J52) -> 6395.7488
D54: TOTAL (2da Cuota) | E54: n/a | F54: =F49+F50+F52-(F51*0.12) -> 16950.8416 | G54: =G49+G50+G52-(G51*0.12) -> 13664.0784 | H54: 10025.904 | I54: 8445.7408 | J54: 6311.7488
D56: Tarifas Trimestrales
D57: Prima Titular | E57: n/a | F57: =VLOOKUP($J$18,Tablas!$A$957:$H$980,4,TRUE) -> 4893.625 | G57: =VLOOKUP($J$18,Tablas!$A$957:$H$980,5,TRUE) -> 4453.9 | H57: =VLOOKUP($J$18,Tablas!$A$957:$H$980,6,TRUE) -> 3128.95 | I57: =VLOOKUP($J$18,Tablas!$A$957:$H$980,7,TRUE) -> 2631.475 | J57: =VLOOKUP($J$18,Tablas!$A$957:$H$980,8,TRUE) -> 1962.95
D58: Prima Cónyuge | E58: n/a | F58: =IF($G$18=1,0,(VLOOKUP($J$20,Tablas!$A$957:$H$980,4,TRUE))) -> 1347.775 | G58: =IF($G$18=1,0,(VLOOKUP($J$20,Tablas!$A$957:$H$980,5,TRUE))) -> 1055.175 | H58: =IF($G$18=1,0,(VLOOKUP($J$20,Tablas!$A$957:$H$980,6,TRUE))) -> 786.775 | I58: =IF($G$18=1,0,(VLOOKUP($J$20,Tablas!$A$957:$H$980,7,TRUE))) -> 668.8 | J58: =IF($G$18=1,0,(VLOOKUP($J$20,Tablas!$A$957:$H$980,8,TRUE))) -> 501.05
D59: Primas Hijos | E59: n/a | F59: =IF($G$20=0,0,(VLOOKUP($G$20,Tablas!$A$981:$H$983,4,TRUE))) -> 1611.5 | G59: =IF($G$20=0,0,(VLOOKUP($G$20,Tablas!$A$981:$H$983,5,TRUE))) -> 821.15 | H59: =IF($G$20=0,0,(VLOOKUP($G$20,Tablas!$A$981:$H$983,6,TRUE))) -> 729.025 | I59: =IF($G$20=0,0,(VLOOKUP($G$20,Tablas!$A$981:$H$983,7,TRUE))) -> 612.425 | J59: =IF($G$20=0,0,(VLOOKUP($G$20,Tablas!$A$981:$H$983,8,TRUE))) -> 460.075
D60: Anexo: Complicaciones de Maternidad | E60: n/a | F60: =+IF($F$22=FALSE,0,Tablas!D$984) -> 0 | G60: =+IF($F$22=FALSE,0,Tablas!E$984) -> 0 | H60: =+IF($F$22=FALSE,0,Tablas!F$984) -> 0 | I60: =+IF($F$22=FALSE,0,Tablas!G$984) -> 0 | J60: =+IF($F$22=FALSE,0,Tablas!H$984) -> 0
D61: Anexo: Trasplante Organos | E61: n/a | F61: =IF($F$24=FALSE,0,Tablas!D$413) -> 0 | G61: =IF($F$24=FALSE,0,Tablas!E$413) -> 0 | H61: =IF($F$24=FALSE,0,Tablas!F$413) -> 0 | I61: =IF($F$24=FALSE,0,Tablas!G$413) -> 0 | J61: =IF($F$24=FALSE,0,Tablas!H$413) -> 0
D62: PRIMA NETA | E62: n/a | F62: =SUM(F57:F61) -> 7852.9 | G62: =SUM(G57:G61) -> 6330.225 | H62: 4644.75 | I62: 3912.7 | J62: 2924.075
D63: =IF('INGRESO DE DATOS'!G33>0,"Descuento","") ->  | E63: n/a | F63: =IF('INGRESO DE DATOS'!$G$18>0,-(F57+F58+F59)*'INGRESO DE DATOS'!$G$18,0) -> 0 | G63: =IF('INGRESO DE DATOS'!$G$18>0,-(G57+G58+G59)*'INGRESO DE DATOS'!$G$18,0) -> 0 | H63: =IF('INGRESO DE DATOS'!$G$18>0,-(H57+H58+H59)*'INGRESO DE DATOS'!$G$18,0) -> 0 | I63: =IF('INGRESO DE DATOS'!$G$18>0,-(I57+I58+I59)*'INGRESO DE DATOS'!$G$18,0) -> 0 | J63: =IF('INGRESO DE DATOS'!$G$18>0,-(J57+J58+J59)*'INGRESO DE DATOS'!$G$18,0) -> 0
D64: Costo Administrativo Anual | E64: n/a | F64: 75 | G64: 75 | H64: 75 | I64: 75 | J64: 75
D65: IVA (12%) | E65: n/a | F65: =+(F62+F63+F64)*12% -> 951.348 | G65: =+(G62+G63+G64)*12% -> 768.627 | H65: 566.37 | I65: 478.524 | J65: =+(J62+J63+J64)*12% -> 359.889
D66: TOTAL (1ra Cuota) | E66: n/a | F66: =SUM(F62:F65) -> 8879.248 | G66: =SUM(G62:G65) -> 7173.852 | H66: =SUM(H62:H65) -> 5286.12 | I66: =SUM(I62:I65) -> 4466.224 | J66: =SUM(J62:J65) -> 3358.964
D67: TOTAL (2da a 4ta Cuota) | E67: n/a | F67: =F62+F63+F65-(F64*0.12) -> 8795.248 | G67: =G62+G63+G65-(G64*0.12) -> 7089.852 | H67: 5202.12 | I67: 4382.224 | J67: 3274.964
D69: Tarifas en US $ - Válidas desde 01 Ene 2022
D70: Este presupuesto solamente tiene carácter informativo y en ningún momento expresa compromiso legal para suministrarle cobertura de seguro. La emisión de una póliza de seguro Bupa está sujeta a todas las evaluaciones de riesgo por parte de Bupa y a la recepción de todos los pagos de prima requeridos.

Sheet Premium
D8: Cotización de Seguro Médico Internacional
D9: Producto: Bupa Premium Care
A10: BUPA PREMIUM CARE
D12: Nombre del Asegurado: | E12: =+'INGRESO DE DATOS'!$D$12 -> Nombre
D14: Intermediario: | E14: =+'INGRESO DE DATOS'!$D$23 -> Agente / Agencia
D16: Fecha: | E16: =+TODAY() -> 2021-12-20 | G16: =IF('INGRESO DE DATOS'!G18>0,"Descuento","") ->  | H16: =IF('INGRESO DE DATOS'!G18>0,'INGRESO DE DATOS'!G18,"") -> 
F18: Numero de Adultos: | G18: =+'INGRESO DE DATOS'!$G$14 -> 2 | I18: Edad de Titular: | J18: =+'INGRESO DE DATOS'!$G$16 -> 65
F20: Numero de Hijos: | G20: =+'INGRESO DE DATOS'!$J$14 -> 3 | I20: Edad de Conyuge: | J20: =+'INGRESO DE DATOS'!$J$16 -> 18
H22: Complicaciones de Maternidad (+ $500,000)
F23: FALSE
F24: FALSE | H24: Trasplante de Órganos (+ $500,000)
F25: FALSE
H26: Eliminación de Deducible
D28: Deducibles
E29: PLAN 1 | F29: PLAN 2 | G29: PLAN 3 | H29: PLAN 4 | I29: PLAN 5 | J29: PLAN 6
D30: Dentro del pais de residencia | E30: n/a | F30: 1000 | G30: 2000 | H30: 5000 | I30: 10000 | J30: 20000
D31: Fuera del pais de residencia | E31: n/a | F31: 2000 | G31: 3000 | H31: 5000 | I31: 10000 | J31: 20000
D33: Tarifas Anuales
D34: Prima Titular | E34: n/a | F34: =VLOOKUP($J$18,Tablas!$A$274:$H$336,4,TRUE) -> 21751 | G34: =VLOOKUP($J$18,Tablas!$A$274:$H$336,5,TRUE) -> 19089 | H34: =VLOOKUP($J$18,Tablas!$A$274:$H$336,6,TRUE) -> 16742 | I34: =VLOOKUP($J$18,Tablas!$A$274:$H$336,7,TRUE) -> 12051 | J34: =VLOOKUP($J$18,Tablas!$A$274:$H$336,8,TRUE) -> 6381
D35: Prima Cónyuge | E35: n/a | F35: =IF($G$18=1,0,(VLOOKUP($J$20,Tablas!$A$274:$H$336,4,TRUE))) -> 5138 | G35: =IF($G$18=1,0,(VLOOKUP($J$20,Tablas!$A$274:$H$336,5,TRUE))) -> 3830 | H35: =IF($G$18=1,0,(VLOOKUP($J$20,Tablas!$A$274:$H$336,6,TRUE))) -> 2777 | I35: =IF($G$18=1,0,(VLOOKUP($J$20,Tablas!$A$274:$H$336,7,TRUE))) -> 2084 | J35: =IF($G$18=1,0,(VLOOKUP($J$20,Tablas!$A$274:$H$336,8,TRUE))) -> 1641
D36: Primas Hijos | E36: n/a | F36: =IF($G$20=0,0,(VLOOKUP($G$20,Tablas!$A$337:$H$339,4,TRUE))) -> 5742 | G36: =IF($G$20=0,0,(VLOOKUP($G$20,Tablas!$A$337:$H$339,5,TRUE))) -> 3924 | H36: =IF($G$20=0,0,(VLOOKUP($G$20,Tablas!$A$337:$H$339,6,TRUE))) -> 2961 | I36: =IF($G$20=0,0,(VLOOKUP($G$20,Tablas!$A$337:$H$339,7,TRUE))) -> 2526 | J36: =IF($G$20=0,0,(VLOOKUP($G$20,Tablas!$A$337:$H$339,8,TRUE))) -> 1775
D37: Anexo: Complicaciones de Maternidad | E37: n/a | F37: =+IF($F$23=FALSE,0,Tablas!D$340) -> 0 | G37: =+IF($F$23=FALSE,0,Tablas!E$340) -> 0 | H37: =+IF($F$23=FALSE,0,Tablas!F$340) -> 0 | I37: =+IF($F$23=FALSE,0,Tablas!G$340) -> 0 | J37: =+IF($F$23=FALSE,0,Tablas!H$340) -> 0
D38: Anexo: Trasplante Organos | E38: n/a | F38: =IF($F$24=FALSE,0,Tablas!D$341) -> 0 | G38: =IF($F$24=FALSE,0,Tablas!E$341) -> 0 | H38: =IF($F$24=FALSE,0,Tablas!F$341) -> 0 | I38: =IF($F$24=FALSE,0,Tablas!G$341) -> 0 | J38: =IF($F$24=FALSE,0,Tablas!H$341) -> 0
D39: Anexo: Eliminacion de Deducible | E39: n/a | F39: =IF($F$25=FALSE,0,Tablas!D$342) -> 0 | G39: =IF($F$25=FALSE,0,Tablas!E$342) -> 0 | H39: =IF($F$25=FALSE,0,Tablas!F$342) -> 0 | I39: =IF($F$25=FALSE,0,Tablas!G$342) -> 0 | J39: =IF($F$25=FALSE,0,Tablas!H$342) -> 0
D40: PRIMA NETA | E40: n/a | F40: =SUM(F34:F39) -> 32631 | G40: =SUM(G34:G39) -> 26843 | H40: 22480 | I40: 16661 | J40: 9797
D41: =IF('INGRESO DE DATOS'!G18>0,"Descuento","") ->  | E41: n/a | F41: =IF('INGRESO DE DATOS'!$G$18>0,-(F34+F35+F36)*'INGRESO DE DATOS'!$G$18,0) -> 0 | G41: =IF('INGRESO DE DATOS'!$G$18>0,-(G34+G35+G36)*'INGRESO DE DATOS'!$G$18,0) -> 0 | H41: =IF('INGRESO DE DATOS'!$G$18>0,-(H34+H35+H36)*'INGRESO DE DATOS'!$G$18,0) -> 0 | I41: =IF('INGRESO DE DATOS'!$G$18>0,-(I34+I35+I36)*'INGRESO DE DATOS'!$G$18,0) -> 0 | J41: =IF('INGRESO DE DATOS'!$G$18>0,-(J34+J35+J36)*'INGRESO DE DATOS'!$G$18,0) -> 0
D42: Costo Administrativo Anual | E42: n/a | F42: 75 | G42: 75 | H42: 75 | I42: 75 | J42: 75
D43: IVA (12%) | E43: n/a | F43: =+(F40+F41+F42)*12% -> 3924.72 | G43: =+(G40+G41+G42)*12% -> 3230.16 | H43: 2706.6 | I43: 2008.32 | J43: =+(J40+J41+J42)*12% -> 1184.64
D44: TOTAL | E44: n/a | F44: =SUM(F40:F43) -> 36630.72 | G44: =SUM(G40:G43) -> 30148.16 | H44: =SUM(H40:H43) -> 25261.6 | I44: =SUM(I40:I43) -> 18744.32 | J44: =SUM(J40:J43) -> 11056.64
D46: Tarifas Semestrales
D47: Prima Titular | E47: n/a | F47: =VLOOKUP($J$18,Tablas!$A$346:$H$408,4,TRUE) -> 11528.03 | G47: =VLOOKUP($J$18,Tablas!$A$346:$H$408,5,TRUE) -> 10117.17 | H47: =VLOOKUP($J$18,Tablas!$A$346:$H$408,6,TRUE) -> 8873.26 | I47: =VLOOKUP($J$18,Tablas!$A$346:$H$408,7,TRUE) -> 6387.03 | J47: =VLOOKUP($J$18,Tablas!$A$346:$H$408,8,TRUE) -> 3381.93
D48: Prima Cónyuge | E48: n/a | F48: =IF($G$18=1,0,(VLOOKUP($J$20,Tablas!$A$346:$H$408,4,TRUE))) -> 2723.14 | G48: =IF($G$18=1,0,(VLOOKUP($J$20,Tablas!$A$346:$H$408,5,TRUE))) -> 2029.9 | H48: =IF($G$18=1,0,(VLOOKUP($J$20,Tablas!$A$346:$H$408,6,TRUE))) -> 1471.81 | I48: =IF($G$18=1,0,(VLOOKUP($J$20,Tablas!$A$346:$H$408,7,TRUE))) -> 1104.52 | J48: =IF($G$18=1,0,(VLOOKUP($J$20,Tablas!$A$346:$H$408,8,TRUE))) -> 869.73
D49: Primas Hijos | E49: n/a | F49: =IF($G$20=0,0,(VLOOKUP($G$20,Tablas!$A$409:$H$411,4,TRUE))) -> 3043.26 | G49: =IF($G$20=0,0,(VLOOKUP($G$20,Tablas!$A$409:$H$411,5,TRUE))) -> 2079.72 | H49: =IF($G$20=0,0,(VLOOKUP($G$20,Tablas!$A$409:$H$411,6,TRUE))) -> 1569.33 | I49: =IF($G$20=0,0,(VLOOKUP($G$20,Tablas!$A$409:$H$411,7,TRUE))) -> 1338.78 | J49: =IF($G$20=0,0,(VLOOKUP($G$20,Tablas!$A$409:$H$411,8,TRUE))) -> 940.75
D50: Anexo: Complicaciones de Maternidad | E50: n/a | F50: =+IF($F$23=FALSE,0,Tablas!D$412) -> 0 | G50: =+IF($F$23=FALSE,0,Tablas!E$412) -> 0 | H50: =+IF($F$23=FALSE,0,Tablas!F$412) -> 0 | I50: =+IF($F$23=FALSE,0,Tablas!G$412) -> 0 | J50: =+IF($F$23=FALSE,0,Tablas!H$412) -> 0
D51: Anexo: Trasplante Organos | E51: n/a | F51: =IF($F$24=FALSE,0,Tablas!D$413) -> 0 | G51: =IF($F$24=FALSE,0,Tablas!E$413) -> 0 | H51: =IF($F$24=FALSE,0,Tablas!F$413) -> 0 | I51: =IF($F$24=FALSE,0,Tablas!G$413) -> 0 | J51: =IF($F$24=FALSE,0,Tablas!H$413) -> 0
D52: Anexo: Eliminacion de Deducible | E52: n/a | F52: =IF($F$25=FALSE,0,Tablas!D$414) -> 0 | G52: =IF($F$25=FALSE,0,Tablas!E$414) -> 0 | H52: =IF($F$25=FALSE,0,Tablas!F$414) -> 0 | I52: =IF($F$25=FALSE,0,Tablas!G$414) -> 0 | J52: =IF($F$25=FALSE,0,Tablas!H$414) -> 0
D53: PRIMA NETA | E53: n/a | F53: =SUM(F47:F52) -> 17294.43 | G53: =SUM(G47:G52) -> 14226.79 | H53: 11914.4 | I53: 8830.33 | J53: 5192.41
D54: =IF('INGRESO DE DATOS'!G18>0,"Descuento","") ->  | E54: n/a | F54: =IF('INGRESO DE DATOS'!$G$18>0,-(F47+F48+F49)*'INGRESO DE DATOS'!$G$18,0) -> 0 | G54: =IF('INGRESO DE DATOS'!$G$18>0,-(G47+G48+G49)*'INGRESO DE DATOS'!$G$18,0) -> 0 | H54: =IF('INGRESO DE DATOS'!$G$18>0,-(H47+H48+H49)*'INGRESO DE DATOS'!$G$18,0) -> 0 | I54: =IF('INGRESO DE DATOS'!$G$18>0,-(I47+I48+I49)*'INGRESO DE DATOS'!$G$18,0) -> 0 | J54: =IF('INGRESO DE DATOS'!$G$18>0,-(J47+J48+J49)*'INGRESO DE DATOS'!$G$18,0) -> 0
D55: Costo Administrativo Anual | E55: n/a | F55: 75 | G55: 75 | H55: 75 | I55: 75 | J55: 75
D56: IVA (12%) | E56: n/a | F56: =+(F53+F54+F55)*12% -> 2084.3316 | G56: =+(G53+G54+G55)*12% -> 1716.2148 | H56: =+(H53+H54+H55)*12% -> 1438.728 | I56: =+(I53+I54+I55)*12% -> 1068.6396 | J56: =+(J53+J54+J55)*12% -> 632.0892
D57: TOTAL (1ra Cuota) | E57: n/a | F57: =SUM(F53:F56) -> 19453.7616 | G57: =SUM(G53:G56) -> 16018.0048 | H57: =SUM(H53:H56) -> 13428.128 | I57: =SUM(I53:I56) -> 9973.9696 | J57: =SUM(J53:J56) -> 5899.4992
D58: TOTAL (2da Cuota) | E58: n/a | F58: =F53+F54+F56-(F55*0.12) -> 19369.7616 | G58: =G53+G54+G56-(G55*0.12) -> 15934.0048 | H58: 13344.128 | I58: 9889.9696 | J58: 5815.4992
D60: Tarifas Trimestrales
D61: Prima Titular | E61: n/a | F61: =VLOOKUP($J$18,Tablas!$A$991:$H$1053,4,TRUE) -> 5981.525 | G61: =VLOOKUP($J$18,Tablas!$A$991:$H$1053,5,TRUE) -> 5249.475 | H61: =VLOOKUP($J$18,Tablas!$A$991:$H$1053,6,TRUE) -> 4604.05 | I61: =VLOOKUP($J$18,Tablas!$A$991:$H$1053,7,TRUE) -> 3314.025 | J61: =VLOOKUP($J$18,Tablas!$A$991:$H$1053,8,TRUE) -> 1754.775
D62: Prima Cónyuge | E62: n/a | F62: =IF($G$18=1,0,(VLOOKUP($J$20,Tablas!$A$991:$H$1053,4,TRUE))) -> 1412.95 | G62: =IF($G$18=1,0,(VLOOKUP($J$20,Tablas!$A$991:$H$1053,5,TRUE))) -> 1053.25 | H62: =IF($G$18=1,0,(VLOOKUP($J$20,Tablas!$A$991:$H$1053,6,TRUE))) -> 763.675 | I62: =IF($G$18=1,0,(VLOOKUP($J$20,Tablas!$A$991:$H$1053,7,TRUE))) -> 573.1 | J62: =IF($G$18=1,0,(VLOOKUP($J$20,Tablas!$A$991:$H$1053,8,TRUE))) -> 451.275
D63: Primas Hijos | E63: n/a | F63: =IF($G$20=0,0,(VLOOKUP($G$20,Tablas!$A$1054:$H$1056,4,TRUE))) -> 1579.05 | G63: =IF($G$20=0,0,(VLOOKUP($G$20,Tablas!$A$1054:$H$1056,5,TRUE))) -> 1079.1 | H63: =IF($G$20=0,0,(VLOOKUP($G$20,Tablas!$A$1054:$H$1056,6,TRUE))) -> 814.275 | I63: =IF($G$20=0,0,(VLOOKUP($G$20,Tablas!$A$1054:$H$1056,7,TRUE))) -> 694.65 | J63: =IF($G$20=0,0,(VLOOKUP($G$20,Tablas!$A$1054:$H$1056,8,TRUE))) -> 488.125
D64: Anexo: Complicaciones de Maternidad | E64: n/a | F64: =+IF($F$23=FALSE,0,Tablas!D$1057) -> 0 | G64: =+IF($F$23=FALSE,0,Tablas!E$1057) -> 0 | H64: =+IF($F$23=FALSE,0,Tablas!F$1057) -> 0 | I64: =+IF($F$23=FALSE,0,Tablas!G$1057) -> 0 | J64: =+IF($F$23=FALSE,0,Tablas!H$1057) -> 0
D65: Anexo: Trasplante Organos | E65: n/a | F65: =IF($F$24=FALSE,0,Tablas!D$1058) -> 0 | G65: =IF($F$24=FALSE,0,Tablas!E$1058) -> 0 | H65: =IF($F$24=FALSE,0,Tablas!F$1058) -> 0 | I65: =IF($F$24=FALSE,0,Tablas!G$1058) -> 0 | J65: =IF($F$24=FALSE,0,Tablas!H$1058) -> 0
D66: Anexo: Eliminacion de Deducible | E66: n/a | F66: =IF($F$25=FALSE,0,Tablas!D$1059) -> 0 | G66: =IF($F$25=FALSE,0,Tablas!E$1059) -> 0 | H66: =IF($F$25=FALSE,0,Tablas!F$1059) -> 0 | I66: =IF($F$25=FALSE,0,Tablas!G$1059) -> 0 | J66: =IF($F$25=FALSE,0,Tablas!H$1059) -> 0
D67: PRIMA NETA | E67: n/a | F67: =SUM(F61:F66) -> 8973.525 | G67: =SUM(G61:G66) -> 7381.825 | H67: 6182 | I67: 4581.775 | J67: 2694.175
D68: =IF('INGRESO DE DATOS'!G34>0,"Descuento","") ->  | E68: n/a | F68: =IF('INGRESO DE DATOS'!$G$18>0,-(F61+F62+F63)*'INGRESO DE DATOS'!$G$18,0) -> 0 | G68: =IF('INGRESO DE DATOS'!$G$18>0,-(G61+G62+G63)*'INGRESO DE DATOS'!$G$18,0) -> 0 | H68: =IF('INGRESO DE DATOS'!$G$18>0,-(H61+H62+H63)*'INGRESO DE DATOS'!$G$18,0) -> 0 | I68: =IF('INGRESO DE DATOS'!$G$18>0,-(I61+I62+I63)*'INGRESO DE DATOS'!$G$18,0) -> 0 | J68: =IF('INGRESO DE DATOS'!$G$18>0,-(J61+J62+J63)*'INGRESO DE DATOS'!$G$18,0) -> 0
D69: Costo Administrativo Anual | E69: n/a | F69: 75 | G69: 75 | H69: 75 | I69: 75 | J69: 75
D70: IVA (12%) | E70: n/a | F70: =+(F67+F68+F69)*12% -> 1085.823 | G70: =+(G67+G68+G69)*12% -> 894.819 | H70: 750.84 | I70: 558.813 | J70: =+(J67+J68+J69)*12% -> 332.301
D71: TOTAL (1ra Cuota) | E71: n/a | F71: =SUM(F67:F70) -> 10134.348 | G71: =SUM(G67:G70) -> 8351.644 | H71: =SUM(H67:H70) -> 7007.84 | I71: =SUM(I67:I70) -> 5215.588 | J71: =SUM(J67:J70) -> 3101.476
D72: TOTAL (2da a 4ta Cuota) | E72: n/a | F72: =F67+F68+F70-(F69*0.12) -> 10050.348 | G72: =G67+G68+G70-(G69*0.12) -> 8267.644 | H72: 6923.84 | I72: 5131.588 | J72: 3017.476
D74: Tarifas en US $ - Válidas desde 01 Ene 2022
D75: Este presupuesto solamente tiene carácter informativo y en ningún momento expresa compromiso legal para suministrarle cobertura de seguro. La emisión de una póliza de seguro Bupa está sujeta a todas las evaluaciones de riesgo por parte de Bupa y a la recepción de todos los pagos de prima requeridos.

Sheet Advantage (LA) (hidden)
A10: Cotización de Seguro Médico Internacional - Bupa ADVANTAGE Care (cobertura solo Latinoamérica)
A12: Bupa Advantage Care (cobertura solo en Latinoamérica) | H12: =+'INGRESO DE DATOS'!$D$12 -> Nombre
A13: Cobertura Máxima anual | C13: US $ 3,500,000
A14: Cobertura Geografica | C14: Limitada a Latinoamérica excluyendo México | H14: =+'INGRESO DE DATOS'!$D$23 -> Agente / Agencia
A15: Condiciones médicas cubiertas | C15: Todas las condiciones médicas
A16: Redes de proveedores | C16: Red de Proveedores "Bupa Advantage" | J16: =+'INGRESO DE DATOS'!$G$14 -> 2 | M16: =+'INGRESO DE DATOS'!$G$16 -> 65
A17: Opciones fuera de la Red | C17: NO, solo en casos de emergencia | F17: FECHA DE COTIZACION :
A18: Requiere preautorización | C18: SI, 30% de penalización por omitir prenotificación | F18: =NOW() -> 2021-12-20T18:27:15.930 | J18: =+'INGRESO DE DATOS'!$J$14 -> 3 | M18: =+'INGRESO DE DATOS'!$J$16 -> 18
A20: Número máximo de días de hospitalización | C20: Ilimitado | I20: TRUE | K20: COMPLICACIONES DE MATERNIDAD
A21: Habitación y alimentación | C21: 100% dentro de Red Bupa
C22: "UCR" para L.A. en emergencias fuera de Red Bupa | I22: TRUE | K22: TRASPLANTE DE ORGANOS
A23: Cuidados Intensivos | C23: 100% dentro de Red Bupa
C24: "UCR" para L.A. en emergencias fuera de Red Bupa
A25: Cobertura de Maternidad | C25: $5,000 (Excepto planes 4,5, y 6) | F25: Deducibles | H25: PLAN 1 | I25: PLAN 2 | J25: PLAN 3 | K25: PLAN 4 | L25: PLAN 5 | M25: PLAN 6
A26: Cobertura Provisional de Recién Nacido | C26: $30,000 por los primeros 90 días | F26: Dentro del pais de residencia | H26: n/a | I26: 1000 | J26: 2000 | K26: 5000 | L26: 10000 | M26: 20000
A27: Cuidado del Recién Nacido saludable | C27: Ya incluída dentro del beneficio de Maternidad | F27: Fuera del pais de residencia | H27: n/a | I27: 2000 | J27: 3000 | K27: 5000 | L27: 10000 | M27: 20000
A28: Cobertura de Complicaciones de Maternidad | C28: Disponible a través de cobertura opcional adicional
A29: Trasplante de Organos | C29: $1,000,000 de por vida, por diagnóstico
A30: Condiciones congénitas y hereditarias | C30: <18 años $300,000 de por vida; >=18 al 100% | F30: Tarifas Anuales
A31: Coberturas opcionales (Riders) | C31: Complicaciones de Maternidad por $500,000 | F31: Prima de Titular : | H31: n/a | I31: =VLOOKUP($M$16,Tablas!$A$420:$H$443,4,TRUE) -> 15378 | J31: =VLOOKUP($M$16,Tablas!$A$420:$H$443,5,TRUE) -> 11902 | K31: =VLOOKUP($M$16,Tablas!$A$420:$H$443,6,TRUE) -> 8897 | L31: =VLOOKUP($M$16,Tablas!$A$420:$H$443,7,TRUE) -> 7032 | M31: =VLOOKUP($M$16,Tablas!$A$420:$H$443,8,TRUE) -> 5708
C32: Trasplante de órganos por $ 300,000 adicionales | F32: Prima de Cónyuge | H32: n/a | I32: =IF($J$16=1,0,(VLOOKUP($M$18,Tablas!$A$420:$H$443,4,TRUE))) -> 3529 | J32: =IF($J$16=1,0,(VLOOKUP($M$18,Tablas!$A$420:$H$443,5,TRUE))) -> 2653 | K32: =IF($J$16=1,0,(VLOOKUP($M$18,Tablas!$A$420:$H$443,6,TRUE))) -> 2029 | L32: =IF($J$16=1,0,(VLOOKUP($M$18,Tablas!$A$420:$H$443,7,TRUE))) -> 1555 | M32: =IF($J$16=1,0,(VLOOKUP($M$18,Tablas!$A$420:$H$443,8,TRUE))) -> 1231
A33: Acompañamiento de menores hospitalizados | C33: $300 por día | F33: Primas Hijos : | H33: n/a | I33: =IF($J$18=0,0,(VLOOKUP($J$18,Tablas!$A$444:$H$446,4,TRUE))) -> 3757 | J33: =IF($J$18=0,0,(VLOOKUP($J$18,Tablas!$A$444:$H$446,5,TRUE))) -> 2580 | K33: =IF($J$18=0,0,(VLOOKUP($J$18,Tablas!$A$444:$H$446,6,TRUE))) -> 2048 | L33: =IF($J$18=0,0,(VLOOKUP($J$18,Tablas!$A$444:$H$446,7,TRUE))) -> 1803 | M33: =IF($J$18=0,0,(VLOOKUP($J$18,Tablas!$A$444:$H$446,8,TRUE))) -> 1269
A34: Ambulancia aérea | C34: $100,000 por año y ticket aéreo de retorno | F34: Prima Rider Complic. Maternidad | H34: n/a | I34: =+IF($I$20=FALSE,0,Tablas!D$447) -> 225 | J34: =+IF($I$20=FALSE,0,Tablas!E$447) -> 225 | K34: =+IF($I$20=FALSE,0,Tablas!F$447) -> 225 | L34: =+IF($I$20=FALSE,0,Tablas!G$447) -> 225 | M34: =+IF($I$20=FALSE,0,Tablas!H$447) -> 225
A35: Repatriación restos mortales | C35: 1 | F35: Prima Rider Trasplante Organos | H35: n/a | I35: =IF($I$22=FALSE,0,Tablas!D$448) -> 300 | J35: =IF($I$22=FALSE,0,Tablas!E$448) -> 300 | K35: =IF($I$22=FALSE,0,Tablas!F$448) -> 300 | L35: =IF($I$22=FALSE,0,Tablas!G$448) -> 300 | M35: =IF($I$22=FALSE,0,Tablas!H$448) -> 300
A36: Medicamentos por receta | C36: $6,000 por Asegurado, por año póliza | F36: TOTAL PRIMA NETA : | H36: n/a | I36: =SUM(I31:I35) -> 23189 | J36: 17660 | K36: 13499 | L36: 10915 | M36: 8733
A37: Almacenamiento de sangre de cordon umbilical | C37: $500 (Excepto planes 4,5, y 6) | F37: Costo Administrativo Anual : | H37: n/a | I37: 75 | J37: 75 | K37: 75 | L37: 75 | M37: 75
F38: GRAN TOTAL : | H38: n/a | I38: =SUM(I36:I37) -> 23264 | J38: =SUM(J36:J37) -> 17735 | K38: =SUM(K36:K37) -> 13574 | L38: =SUM(L36:L37) -> 10990 | M38: =SUM(M36:M37) -> 8808
A39: Atención médica en el hogar | C39: 100% de usual/acostumbrado y razonable
A40: Rehabilitación | C40: 100% de usual/acostumbrado y razonable | F40: Tarifas Semestrales
A41: Residencia y cuidados paliativos | C41: 100% de usual/acostumbrado y razonable | F41: Prima de Titular : | H41: n/a | I41: =VLOOKUP($M$16,Tablas!$A$453:$H$476,4,TRUE) -> 8150.34 | J41: =VLOOKUP($M$16,Tablas!$A$453:$H$476,5,TRUE) -> 6308.06 | K41: =VLOOKUP($M$16,Tablas!$A$453:$H$476,6,TRUE) -> 4715.41 | L41: =VLOOKUP($M$16,Tablas!$A$453:$H$476,7,TRUE) -> 3726.96 | M41: =VLOOKUP($M$16,Tablas!$A$453:$H$476,8,TRUE) -> 3025.24
A42: Cobertura de actividades peligrosas | C42: 1 | F42: Prima de Cónyuge | H42: n/a | I42: =IF($J$16=1,0,(VLOOKUP($M$18,Tablas!$A$453:$H$476,4,TRUE))) -> 1870.37 | J42: =IF($J$16=1,0,(VLOOKUP($M$18,Tablas!$A$453:$H$476,5,TRUE))) -> 1406.09 | K42: =IF($J$16=1,0,(VLOOKUP($M$18,Tablas!$A$453:$H$476,6,TRUE))) -> 1075.37 | L42: =IF($J$16=1,0,(VLOOKUP($M$18,Tablas!$A$453:$H$476,7,TRUE))) -> 824.15 | M42: =IF($J$16=1,0,(VLOOKUP($M$18,Tablas!$A$453:$H$476,8,TRUE))) -> 652.43
A43: Chequeos generales de rutina | C43: Hasta US$150 por año póliza.Sin deducible | F43: Primas Hijos : | H43: n/a | I43: =IF($J$18=0,0,(VLOOKUP($J$18,Tablas!$A$477:$H$479,4,TRUE))) -> 1991.21 | J43: =IF($J$18=0,0,(VLOOKUP($J$18,Tablas!$A$477:$H$479,5,TRUE))) -> 1367.4 | K43: =IF($J$18=0,0,(VLOOKUP($J$18,Tablas!$A$477:$H$479,6,TRUE))) -> 1085.44 | L43: =IF($J$18=0,0,(VLOOKUP($J$18,Tablas!$A$477:$H$479,7,TRUE))) -> 955.59 | M43: =IF($J$18=0,0,(VLOOKUP($J$18,Tablas!$A$477:$H$479,8,TRUE))) -> 672.57
A44: Cobertura de VIH, SIDA, CAS | C44: Solo como efecto de transfusión de sangre | F44: Prima Rider Complic. Maternidad | H44: n/a | I44: =+IF($I$20=FALSE,0,Tablas!D$480) -> 119.25 | J44: =+IF($I$20=FALSE,0,Tablas!E$480) -> 119.25 | K44: =+IF($I$20=FALSE,0,Tablas!F$480) -> 119.25 | L44: =+IF($I$20=FALSE,0,Tablas!G$480) -> 119.25 | M44: =+IF($I$20=FALSE,0,Tablas!H$480) -> 119.25
A45: Cobertura de brazos y piernas artificiales | C45: $30,000 por año y hasta $120,000 de por vida | F45: Prima Rider Trasplante Organos | H45: n/a | I45: =IF($I$22=FALSE,0,Tablas!D$481) -> 159 | J45: =IF($I$22=FALSE,0,Tablas!E$481) -> 159 | K45: =IF($I$22=FALSE,0,Tablas!F$481) -> 159 | L45: =IF($I$22=FALSE,0,Tablas!G$481) -> 159 | M45: =IF($I$22=FALSE,0,Tablas!H$481) -> 159
A46: Cobertura extendida para dependientes en caso de muerte de asegurado principal | C46: 2 años sin costo | F46: TOTAL PRIMA NETA : | H46: n/a | I46: =SUM(I41:I45) -> 12290.17 | J46: 9359.8 | K46: 7154.47 | L46: 5784.95 | M46: 4628.49
F47: Costo Administrativo Anual : | H47: n/a | I47: 75 | J47: 75 | K47: 75 | L47: 75 | M47: 75
F48: GRAN TOTAL (1ra Cuota) : | H48: n/a | I48: =SUM(I46:I47) -> 12365.17 | J48: =SUM(J46:J47) -> 9434.8 | K48: =SUM(K46:K47) -> 7229.47 | L48: =SUM(L46:L47) -> 5859.95 | M48: =SUM(M46:M47) -> 4703.49
F49: GRAN TOTAL (2da Cuota) : | H49: n/a | I49: =I46 -> 12290.17 | J49: =J46 -> 9359.8 | K49: 7154.47 | L49: 5784.95 | M49: 4628.49
F50: Tarifas en US $ - Válidas desde 01 Ene 2013

Sheet Blue 500 (hidden)
A10: Cotización de Seguro Médico Internacional - Bupa Blue 500 Guatemala
A12: Bupa Blue 500 Guatemala | H12: =+'INGRESO DE DATOS'!$D$12 -> Nombre
A13: Cobertura Máxima anual | C13: US$500,000
A14: Cobertura Geografica | C14: Cobertura mundial | H14: =+'INGRESO DE DATOS'!$D$23 -> Agente / Agencia
A15: Condiciones médicas cubiertas | C15: Todas las condiciones médicas
A16: Redes de proveedores | C16: Red de Proveedores Alpha | J16: =+'INGRESO DE DATOS'!$G$14 -> 2 | M16: =+'INGRESO DE DATOS'!$G$16 -> 65
A17: Opciones fuera de la Red | C17: 30%/70% | F17: FECHA DE COTIZACION :
A18: Requiere preautorización | C18: SI, 30% de penalización por omitir prenotificación | F18: =NOW() -> 2021-12-20T18:27:15.930 | J18: =+'INGRESO DE DATOS'!$J$14 -> 3 | M18: =+'INGRESO DE DATOS'!$J$16 -> 18
A20: Número máximo de días de hospitalización | C20: Ilimitado | I20: TRUE | K20: COMPLICACIONES DE MATERNIDAD
A21: Habitación y alimentación | C21: 100% dentro de Red Bupa
C22: 70% fuera de la Red Bupa | I22: TRUE | K22: TRASPLANTE DE ORGANOS
A23: Cuidados Intensivos | C23: 100% dentro de Red Bupa
C24: 70% fuera de la Red Bupa
A25: Cobertura de Maternidad | C25: $3,500 (Excepto planes 4,5, y 6) | F25: Deducibles | I25: PLAN 1 | J25: PLAN 2 | K25: PLAN 3 | L25: PLAN 4 | M25: PLAN 5
A26: Cobertura Provisional de Recién Nacido | C26: $10,000 por los primeros 90 días | F26: Dentro del pais de residencia | I26: 250 | J26: 500 | K26: 1000 | L26: 2000 | M26: 5000
A27: Cuidado del Recién Nacido saludable | C27: 2 visitas por año/ $50 vacunas | F27: Fuera del pais de residencia | I27: 500 | J27: 1000 | K27: 2000 | L27: 4000 | M27: 5000
A28: Cobertura de Complicaciones de Maternidad | C28: 50000
A29: Trasplante de Organos | C29: 250000
A30: Condiciones congénitas y hereditarias | C30: <18 años $75,000 de por vida; >=18 al 100% | F30: Tarifas Anuales
A31: Coberturas opcionales (Riders) | C31: Complicaciones de Maternidad por $500,000 | F31: Prima de Titular : | I31: =VLOOKUP($M$16,Tablas!$A$633:$H$695,4,TRUE) -> 5200 | J31: =VLOOKUP($M$16,Tablas!$A$633:$H$695,5,TRUE) -> 4523 | K31: =VLOOKUP($M$16,Tablas!$A$633:$H$695,6,TRUE) -> 4123 | L31: =VLOOKUP($M$16,Tablas!$A$633:$H$695,7,TRUE) -> 3767 | M31: =VLOOKUP($M$16,Tablas!$A$633:$H$695,8,TRUE) -> 2698
C32: Trasplante de órganos por $ 500,000 de por vida | F32: Prima de Cónyuge | I32: =IF($J$16=1,0,(VLOOKUP($M$18,Tablas!$A$633:$H$695,4,TRUE))) -> 1371 | J32: =IF($J$16=1,0,(VLOOKUP($M$18,Tablas!$A$633:$H$695,5,TRUE))) -> 1193 | K32: =IF($J$16=1,0,(VLOOKUP($M$18,Tablas!$A$633:$H$695,6,TRUE))) -> 1086 | L32: =IF($J$16=1,0,(VLOOKUP($M$18,Tablas!$A$633:$H$695,7,TRUE))) -> 837 | M32: =IF($J$16=1,0,(VLOOKUP($M$18,Tablas!$A$633:$H$695,8,TRUE))) -> 650
A33: Acompañamiento de menores hospitalizados | C33: No incluye | F33: Primas Hijos : | I33: =IF($J$18=0,0,(VLOOKUP($J$18,Tablas!$A$696:$H$698,4,TRUE))) -> 1736 | J33: =IF($J$18=0,0,(VLOOKUP($J$18,Tablas!$A$696:$H$698,5,TRUE))) -> 1505 | K33: =IF($J$18=0,0,(VLOOKUP($J$18,Tablas!$A$696:$H$698,6,TRUE))) -> 1371 | L33: =IF($J$18=0,0,(VLOOKUP($J$18,Tablas!$A$696:$H$698,7,TRUE))) -> 703 | M33: =IF($J$18=0,0,(VLOOKUP($J$18,Tablas!$A$696:$H$698,8,TRUE))) -> 641
A34: Ambulancia aérea | C34: 25000 | F34: Prima Rider Complic. Maternidad | I34: =+IF($I$20=FALSE,0,Tablas!D$699) -> 225 | J34: =+IF($I$20=FALSE,0,Tablas!E$699) -> 225 | K34: =+IF($I$20=FALSE,0,Tablas!F$699) -> 225 | L34: =+IF($I$20=FALSE,0,Tablas!G$699) -> 225 | M34: =+IF($I$20=FALSE,0,Tablas!H$699) -> 225
A35: Repatriación restos mortales | C35: 5000 | F35: Prima Rider Trasplante Organos | I35: =IF($I$22=FALSE,0,Tablas!D$700) -> 300 | J35: =IF($I$22=FALSE,0,Tablas!E$700) -> 300 | K35: =IF($I$22=FALSE,0,Tablas!F$700) -> 300 | L35: =IF($I$22=FALSE,0,Tablas!G$700) -> 300 | M35: =IF($I$22=FALSE,0,Tablas!H$700) -> 300
A36: Medicamentos por receta | C36: Si son médicamente prescritos tras una hospitalización o en relación con una cirugía ambulatoria entonces $7,000 por los próximos 6 meses. | F36: TOTAL PRIMA NETA : | I36: =SUM(I31:I35) -> 8832 | J36: 7746 | K36: 7105 | L36: 5832 | M36: 4514
F37: Costo Administrativo Anual : | I37: 75 | J37: 75 | K37: 75 | L37: 75 | M37: 75
F38: IVA (12%) | I38: =I36*0.12 -> 1059.84 | J38: =J36*0.12 -> 929.52 | K38: 852.6 | L38: 699.84 | M38: 541.68
F39: GRAN TOTAL : | I39: =SUM(I36:I38) -> 9966.84 | J39: =SUM(J36:J38) -> 8750.52 | K39: 8032.6 | L39: 6606.84 | M39: 5130.68
F41: Tarifas Semestrales
C42: Medicamentos por receta ambulatoria $1,500 | F42: Prima de Titular : | I42: =VLOOKUP($M$16,Tablas!$A$705:$H$767,4,TRUE) -> 2756 | J42: =VLOOKUP($M$16,Tablas!$A$705:$H$767,5,TRUE) -> 2397.19 | K42: =VLOOKUP($M$16,Tablas!$A$705:$H$767,6,TRUE) -> 2185.19 | L42: =VLOOKUP($M$16,Tablas!$A$705:$H$767,7,TRUE) -> 1996.51 | M42: =VLOOKUP($M$16,Tablas!$A$705:$H$767,8,TRUE) -> 1429.94
F43: Prima de Cónyuge | I43: =IF($J$16=1,0,(VLOOKUP($M$18,Tablas!$A$705:$H$767,4,TRUE))) -> 726.63 | J43: =IF($J$16=1,0,(VLOOKUP($M$18,Tablas!$A$705:$H$767,5,TRUE))) -> 632.29 | K43: =IF($J$16=1,0,(VLOOKUP($M$18,Tablas!$A$705:$H$767,6,TRUE))) -> 575.58 | L43: =IF($J$16=1,0,(VLOOKUP($M$18,Tablas!$A$705:$H$767,7,TRUE))) -> 443.61 | M43: =IF($J$16=1,0,(VLOOKUP($M$18,Tablas!$A$705:$H$767,8,TRUE))) -> 344.5
A44: Atención médica en el hogar | C44: $200 por día, hasta 60 días por año por incidente | F44: Primas Hijos : | I44: =IF($J$18=0,0,(VLOOKUP($J$18,Tablas!$A$768:$H$770,4,TRUE))) -> 920.08 | J44: =IF($J$18=0,0,(VLOOKUP($J$18,Tablas!$A$768:$H$770,5,TRUE))) -> 797.65 | K44: =IF($J$18=0,0,(VLOOKUP($J$18,Tablas!$A$768:$H$770,6,TRUE))) -> 726.63 | L44: =IF($J$18=0,0,(VLOOKUP($J$18,Tablas!$A$768:$H$770,7,TRUE))) -> 372.59 | M44: =IF($J$18=0,0,(VLOOKUP($J$18,Tablas!$A$768:$H$770,8,TRUE))) -> 339.73
A45: Rehabilitación | C45: 100% de UCR hasta 40 sesiones por año | F45: Prima Rider Complic. Maternidad | I45: =+IF($I$20=FALSE,0,Tablas!D$771) -> 119.25 | J45: =+IF($I$20=FALSE,0,Tablas!E$771) -> 119.25 | K45: =+IF($I$20=FALSE,0,Tablas!F$771) -> 119.25 | L45: =+IF($I$20=FALSE,0,Tablas!G$771) -> 119.25 | M45: =+IF($I$20=FALSE,0,Tablas!H$771) -> 119.25
A46: Residencia y cuidados paliativos | C46: 100% de usual/acostumbrado y razonable | F46: Prima Rider Trasplante Organos | I46: =IF($I$22=FALSE,0,Tablas!D$772) -> 159 | J46: =IF($I$22=FALSE,0,Tablas!E$772) -> 159 | K46: =IF($I$22=FALSE,0,Tablas!F$772) -> 159 | L46: =IF($I$22=FALSE,0,Tablas!G$772) -> 159 | M46: =IF($I$22=FALSE,0,Tablas!H$772) -> 159
A47: Cobertura de actividades peligrosas | C47: 100% siempre que no sea práctica profesional | F47: TOTAL PRIMA NETA : | I47: =SUM(I42:I46) -> 4680.96 | J47: 4105.38 | K47: 3765.65 | L47: 3090.96 | M47: 2392.42
A48: Cobertura de brazos y piernas artificiales | C48: $30,000 por año y hasta $120,000 de por vida | F48: Costo Administrativo Anual : | I48: 75 | J48: 75 | K48: 75 | L48: 75 | M48: 75
A49: Cobertura extendida para dependientes en caso de muerte de asegurado principal | C49: n/a | F49: IVA (12%) | I49: =I47*0.12 -> 561.7152 | J49: =J47*0.12 -> 492.6456 | K49: 451.878 | L49: 370.9152 | M49: 287.0904
F50: GRAN TOTAL (1ra Cuota) : | I50: =SUM(I47:I49) -> 5317.6752 | J50: =SUM(J47:J49) -> 4673.0256 | K50: 4292.528 | L50: 3536.8752 | M50: 2754.5104
F51: GRAN TOTAL (2da Cuota) : | I51: =I47+I49 -> 5242.6752 | J51: =J47+J49 -> 4598.0256 | K51: 4217.528 | L51: 3461.8752 | M51: 2679.5104
F52: Tarifas en US $ - Válidas desde 01 Ene 2014

Sheet Blue 100 (hidden)
A10: Cotización de Seguro Médico Internacional - Bupa Blue 100 Guatemala
A12: Bupa Blue 100 Guatemala | H12: =+'INGRESO DE DATOS'!$D$12 -> Nombre
A13: Cobertura Máxima anual | C13: US$100,000
A14: Cobertura Geografica | C14: Cobertura mundial | H14: =+'INGRESO DE DATOS'!$D$23 -> Agente / Agencia
A15: Condiciones médicas cubiertas | C15: Todas las condiciones médicas
A16: Redes de proveedores | C16: Red de Proveedores Alpha | J16: =+'INGRESO DE DATOS'!$G$14 -> 2 | M16: =+'INGRESO DE DATOS'!$G$16 -> 65
A17: Opciones fuera de la Red | C17: 30%/70% | F17: FECHA DE COTIZACION :
A18: Requiere preautorización | C18: Sí, 30% de penalización por omitir prenotificación | F18: =NOW() -> 2021-12-20T18:27:15.930 | J18: =+'INGRESO DE DATOS'!$J$14 -> 3 | M18: =+'INGRESO DE DATOS'!$J$16 -> 18
A20: Número máximo de días de hospitalización | C20: Ilimitado | I20: TRUE | K20: COMPLICACIONES DE MATERNIDAD
A21: Habitación y alimentación | C21: 100% dentro de Red Bupa
C22: 70% fuera de la Red Bupa | I22: TRUE | K22: TRASPLANTE DE ORGANOS
A23: Cuidados Intensivos | C23: 100% dentro de Red Bupa
C24: 70% fuera de la Red Bupa
A25: Cobertura de Maternidad | C25: $3,500 (Excepto planes 4,5, y 6) | F25: Deducibles | I25: PLAN 1 | J25: PLAN 2 | K25: PLAN 3 | L25: PLAN 4 | M25: PLAN 5
A26: Cobertura Provisional de Recién Nacido | C26: $7,500 por los primeros 90 días | F26: Dentro del pais de residencia | I26: 250 | J26: 500 | K26: 1000 | L26: 2000 | M26: 5000
A27: Cuidado del Recién Nacido saludable | C27: 2 visitas por año. $50 vacunas | F27: Fuera del pais de residencia | I27: 500 | J27: 1000 | K27: 2000 | L27: 4000 | M27: 5000
A28: Cobertura de Complicaciones de Maternidad | C28: 25000
A29: Trasplante de Organos | C29: 100000
A30: Condiciones congénitas y hereditarias | C30: <18 años $50,000 de por vida; >=18 al 100% | F30: Tarifas Anuales
A31: Coberturas opcionales (Riders) | C31: Complicaciones de Maternidad por $500,000 | F31: Prima de Titular : | I31: =VLOOKUP($M$16,Tablas!$A$778:$H$840,4,TRUE) -> 4179 | J31: =VLOOKUP($M$16,Tablas!$A$778:$H$840,5,TRUE) -> 4095 | K31: =VLOOKUP($M$16,Tablas!$A$778:$H$840,6,TRUE) -> 3860 | L31: =VLOOKUP($M$16,Tablas!$A$778:$H$840,7,TRUE) -> 3519 | M31: =VLOOKUP($M$16,Tablas!$A$778:$H$840,8,TRUE) -> 3213
C32: Trasplante de órganos por $ 500,000 de por vida | F32: Prima de Cónyuge | I32: =IF($J$16=1,0,(VLOOKUP($M$18,Tablas!$A$778:$H$840,4,TRUE))) -> 1102 | J32: =IF($J$16=1,0,(VLOOKUP($M$18,Tablas!$A$778:$H$840,5,TRUE))) -> 1079 | K32: =IF($J$16=1,0,(VLOOKUP($M$18,Tablas!$A$633:$H$656,6,TRUE))) -> 1086 | L32: =IF($J$16=1,0,(VLOOKUP($M$18,Tablas!$A$778:$H$840,7,TRUE))) -> 928 | M32: =IF($J$16=1,0,(VLOOKUP($M$18,Tablas!$A$778:$H$840,8,TRUE))) -> 717
A33: Acompañamiento de menores hospitalizados | C33: n/a | F33: Primas Hijos : | I33: =IF($J$18=0,0,(VLOOKUP($J$18,Tablas!$A$841:$H$843,4,TRUE))) -> 1393 | J33: =IF($J$18=0,0,(VLOOKUP($J$18,Tablas!$A$841:$H$843,5,TRUE))) -> 1364 | K33: =IF($J$18=0,0,(VLOOKUP($J$18,Tablas!$A$841:$H$843,6,TRUE))) -> 1285 | L33: =IF($J$18=0,0,(VLOOKUP($J$18,Tablas!$A$841:$H$843,7,TRUE))) -> 1173 | M33: =IF($J$18=0,0,(VLOOKUP($J$18,Tablas!$A$841:$H$843,8,TRUE))) -> 597
A34: Ambulancia aérea | C34: $10,000 por año y ticket aéreo de retorno | F34: Prima Rider Complic. Maternidad | I34: =+IF($I$20=FALSE,0,Tablas!D$844) -> 225 | J34: =+IF($I$20=FALSE,0,Tablas!E$844) -> 225 | K34: =+IF($I$20=FALSE,0,Tablas!F$844) -> 225 | L34: =+IF($I$20=FALSE,0,Tablas!G$844) -> 225 | M34: =+IF($I$20=FALSE,0,Tablas!H$844) -> 225
A35: Repatriación restos mortales | C35: 5000 | F35: Prima Rider Trasplante Organos | I35: =IF($I$22=FALSE,0,Tablas!D$845) -> 300 | J35: =IF($I$22=FALSE,0,Tablas!E$845) -> 300 | K35: =IF($I$22=FALSE,0,Tablas!F$845) -> 300 | L35: =IF($I$22=FALSE,0,Tablas!G$845) -> 300 | M35: =IF($I$22=FALSE,0,Tablas!H$845) -> 300
A36: Medicamentos por receta | C36: Si son médicamente prescritos tras una hospitalización o en relación con una cirugía ambulatoria entonces $6,000 por los próximos 6 meses. | F36: TOTAL PRIMA NETA : | I36: =SUM(I31:I35) -> 7199 | J36: 7063 | K36: 6756 | L36: 6145 | M36: 5052
F37: Costo Administrativo Anual : | I37: 75 | J37: 75 | K37: 75 | L37: 75 | M37: 75
F38: IVA (12%) | I38: =I36*0.12 -> 863.88 | J38: =J36*0.12 -> 847.56 | K38: 810.72 | L38: 737.4 | M38: 606.24
F39: GRAN TOTAL : | I39: =SUM(I36:I38) -> 8137.88 | J39: =SUM(J36:J38) -> 7985.56 | K39: 7641.72 | L39: 6957.4 | M39: 5733.24
F41: Tarifas Semestrales
C42: Tratamiento Ambulatorio a US$1,500 | F42: Prima de Titular : | I42: =VLOOKUP($M$16,Tablas!$A$850:$H$912,4,TRUE) -> 2214.87 | J42: =VLOOKUP($M$16,Tablas!$A$850:$H$912,5,TRUE) -> 2170.35 | K42: =VLOOKUP($M$16,Tablas!$A$850:$H$912,6,TRUE) -> 2045.8 | L42: =VLOOKUP($M$16,Tablas!$A$850:$H$912,7,TRUE) -> 1865.07 | M42: =VLOOKUP($M$16,Tablas!$A$850:$H$912,8,TRUE) -> 1702.89
F43: Prima de Cónyuge | I43: =IF($J$16=1,0,(VLOOKUP($M$18,Tablas!$A$850:$H$912,4,TRUE))) -> 584.06 | J43: =IF($J$16=1,0,(VLOOKUP($M$18,Tablas!$A$850:$H$912,5,TRUE))) -> 571.87 | K43: =IF($J$16=1,0,(VLOOKUP($M$18,Tablas!$A$850:$H$912,6,TRUE))) -> 539.54 | L43: =IF($J$16=1,0,(VLOOKUP($M$18,Tablas!$A$850:$H$912,7,TRUE))) -> 491.84 | M43: =IF($J$16=1,0,(VLOOKUP($M$18,Tablas!$A$850:$H$912,8,TRUE))) -> 380.01
A44: Atención médica en el hogar | C44: $200 por día, hasta 60 días por año por incidente | F44: Primas Hijos : | I44: =IF($J$18=0,0,(VLOOKUP($J$18,Tablas!$A$913:$H$915,4,TRUE))) -> 738.29 | J44: =IF($J$18=0,0,(VLOOKUP($J$18,Tablas!$A$913:$H$915,5,TRUE))) -> 722.92 | K44: =IF($J$18=0,0,(VLOOKUP($J$18,Tablas!$A$913:$H$915,6,TRUE))) -> 681.05 | L44: =IF($J$18=0,0,(VLOOKUP($J$18,Tablas!$A$913:$H$915,7,TRUE))) -> 621.69 | M44: =IF($J$18=0,0,(VLOOKUP($J$18,Tablas!$A$913:$H$915,8,TRUE))) -> 316.41
A45: Rehabilitación | C45: 100% de UCR hasta 30 sesiones por año | F45: Prima Rider Complic. Maternidad | I45: =+IF($I$20=FALSE,0,Tablas!D$916) -> 119.25 | J45: =+IF($I$20=FALSE,0,Tablas!E$916) -> 119.25 | K45: =+IF($I$20=FALSE,0,Tablas!F$916) -> 119.25 | L45: =+IF($I$20=FALSE,0,Tablas!G$916) -> 119.25 | M45: =+IF($I$20=FALSE,0,Tablas!H$916) -> 119.25
A46: Residencia y cuidados paliativos | C46: 100% de usual/acostumbrado y razonable | F46: Prima Rider Trasplante Organos | I46: =IF($I$22=FALSE,0,Tablas!D$917) -> 159 | J46: =IF($I$22=FALSE,0,Tablas!E$917) -> 159 | K46: =IF($I$22=FALSE,0,Tablas!F$917) -> 159 | L46: =IF($I$22=FALSE,0,Tablas!G$917) -> 159 | M46: =IF($I$22=FALSE,0,Tablas!H$917) -> 159
A47: Cobertura de actividades peligrosas | C47: 100% siempre que no sea práctica profesional | F47: TOTAL PRIMA NETA : | I47: =SUM(I42:I46) -> 3815.47 | J47: 3743.39 | K47: 3544.64 | L47: 3256.85 | M47: 2677.56
A48: Cobertura de brazos y piernas artificiales | C48: $30,000 por año y hasta $120,000 de por vida | F48: Costo Administrativo Anual : | I48: 75 | J48: 75 | K48: 75 | L48: 75 | M48: 75
A49: Cobertura extendida para dependientes en caso de muerte de asegurado principal | C49: n/a | F49: IVA (12%) | I49: =I47*0.12 -> 457.8564 | J49: =J47*0.12 -> 449.2068 | K49: 425.3568 | L49: 390.822 | M49: 321.3072
F50: GRAN TOTAL (1ra Cuota) : | I50: =SUM(I47:I49) -> 4348.3264 | J50: =SUM(J47:J49) -> 4267.5968 | K50: 4044.9968 | L50: 3722.672 | M50: 3073.8672
F51: GRAN TOTAL (2da Cuota) : | I51: =I47+I49 -> 4273.3264 | J51: =J47+J49 -> 4192.5968 | K51: 3969.9968 | L51: 3647.672 | M51: 2998.8672
F52: Tarifas en US $ - Válidas desde 01 Ene 2014

Sheet Classic
D8: Cotización de Seguro Médico Internacional
D9: Bupa Classic Care
A10: BUPA CLASSIC CARE
D12: Nombre del Asegurado: | E12: =+'INGRESO DE DATOS'!$D$12 -> Nombre
D14: Intermediario: | E14: =+'INGRESO DE DATOS'!$D$23 -> Agente / Agencia
D16: Fecha: | E16: =+TODAY() -> 2021-12-20 | G16: =IF('INGRESO DE DATOS'!G18>0,"Descuento","") ->  | H16: =IF('INGRESO DE DATOS'!G18>0,'INGRESO DE DATOS'!G18,"") -> 
F18: Numero de Adultos: | G18: =+'INGRESO DE DATOS'!$G$14 -> 2 | I18: Edad de Titular: | J18: =+'INGRESO DE DATOS'!$G$16 -> 65
F20: Numero de Hijos: | G20: =+'INGRESO DE DATOS'!$J$14 -> 3 | I20: Edad de Conyuge: | J20: =+'INGRESO DE DATOS'!$J$16 -> 18
H22: Complicaciones de Maternidad (+ $500,000)
F23: FALSE
F24: FALSE | H24: Trasplante de Órganos (+ $500,000)
F25: FALSE
H26: Eliminación de Deducible
D28: Deducibles
E29: PLAN 1 | F29: PLAN 2 | G29: PLAN 3 | H29: PLAN 4 | I29: PLAN 5 | J29: PLAN 6
D30: Dentro del pais de residencia | E30: n/a | F30: 1000 | G30: 2000 | H30: 5000 | I30: 10000 | J30: 20000
D31: Fuera del pais de residencia | E31: n/a | F31: 2000 | G31: 3000 | H31: 5000 | I31: 10000 | J31: 20000
D33: Tarifas Anuales
D34: Prima Titular | E34: n/a | F34: =VLOOKUP($J$18,Tablas!$A$487:$H$549,4,TRUE) -> 14321 | G34: =VLOOKUP($J$18,Tablas!$A$487:$H$549,5,TRUE) -> 12396 | H34: =VLOOKUP($J$18,Tablas!$A$487:$H$549,6,TRUE) -> 8748 | I34: =VLOOKUP($J$18,Tablas!$A$487:$H$549,7,TRUE) -> 5450 | J34: =VLOOKUP($J$18,Tablas!$A$487:$H$549,8,TRUE) -> 2923
D35: Prima Cónyuge | E35: n/a | F35: =IF($G$18=1,0,(VLOOKUP($J$20,Tablas!$A$487:$H$549,4,TRUE))) -> 3025 | G35: =IF($G$18=1,0,(VLOOKUP($J$20,Tablas!$A$487:$H$549,5,TRUE))) -> 2344 | H35: =IF($G$18=1,0,(VLOOKUP($J$20,Tablas!$A$487:$H$549,6,TRUE))) -> 1532 | I35: =IF($G$18=1,0,(VLOOKUP($J$20,Tablas!$A$487:$H$549,7,TRUE))) -> 1124 | J35: =IF($G$18=1,0,(VLOOKUP($J$20,Tablas!$A$487:$H$549,8,TRUE))) -> 790
D36: Primas Hijos | E36: n/a | F36: =IF($G$20=0,0,(VLOOKUP($G$20,Tablas!$A$550:$H$552,4,TRUE))) -> 3797 | G36: =IF($G$20=0,0,(VLOOKUP($G$20,Tablas!$A$550:$H$552,5,TRUE))) -> 1929 | H36: =IF($G$20=0,0,(VLOOKUP($G$20,Tablas!$A$550:$H$552,6,TRUE))) -> 1502 | I36: =IF($G$20=0,0,(VLOOKUP($G$20,Tablas!$A$550:$H$552,7,TRUE))) -> 1070 | J36: =IF($G$20=0,0,(VLOOKUP($G$20,Tablas!$A$550:$H$552,8,TRUE))) -> 760
D37: Anexo: Complicaciones de Maternidad | E37: n/a | F37: =+IF($F$23=FALSE,0,Tablas!D$553) -> 0 | G37: =+IF($F$23=FALSE,0,Tablas!E$553) -> 0 | H37: =+IF($F$23=FALSE,0,Tablas!F$553) -> 0 | I37: =+IF($F$23=FALSE,0,Tablas!G$553) -> 0 | J37: =+IF($F$23=FALSE,0,Tablas!H$553) -> 0
D38: Anexo: Trasplante Organos | E38: n/a | F38: =IF($F$24=FALSE,0,Tablas!D$554) -> 0 | G38: =IF($F$24=FALSE,0,Tablas!E$554) -> 0 | H38: =IF($F$24=FALSE,0,Tablas!F$554) -> 0 | I38: =IF($F$24=FALSE,0,Tablas!G$554) -> 0 | J38: =IF($F$24=FALSE,0,Tablas!H$554) -> 0
D39: Anexo: Eliminacion de Deducible | E39: n/a | F39: =IF($F$25=FALSE,0,Tablas!D$555) -> 0 | G39: =IF($F$25=FALSE,0,Tablas!E$555) -> 0 | H39: =IF($F$25=FALSE,0,Tablas!F$555) -> 0 | I39: =IF($F$25=FALSE,0,Tablas!G$555) -> 0 | J39: =IF($F$25=FALSE,0,Tablas!H$555) -> 0
D40: PRIMA NETA | E40: n/a | F40: =SUM(F34:F39) -> 21143 | G40: =SUM(G34:G39) -> 16669 | H40: 11782 | I40: 7644 | J40: 4473
D41: =IF('INGRESO DE DATOS'!G18>0,"Descuento","") ->  | E41: n/a | F41: =IF('INGRESO DE DATOS'!$G$18>0,-(F34+F35+F36)*'INGRESO DE DATOS'!$G$18,0) -> 0 | G41: =IF('INGRESO DE DATOS'!$G$18>0,-(G34+G35+G36)*'INGRESO DE DATOS'!$G$18,0) -> 0 | H41: =IF('INGRESO DE DATOS'!$G$18>0,-(H34+H35+H36)*'INGRESO DE DATOS'!$G$18,0) -> 0 | I41: =IF('INGRESO DE DATOS'!$G$18>0,-(I34+I35+I36)*'INGRESO DE DATOS'!$G$18,0) -> 0 | J41: =IF('INGRESO DE DATOS'!$G$18>0,-(J34+J35+J36)*'INGRESO DE DATOS'!$G$18,0) -> 0
D42: Costo Administrativo Anual | E42: n/a | F42: 75 | G42: 75 | H42: 75 | I42: 75 | J42: 75
D43: IVA (12%) | E43: n/a | F43: =+(F40+F41+F42)*12% -> 2546.16 | G43: =+(G40+G41+G42)*12% -> 2009.28 | H43: 1422.84 | I43: 926.28 | J43: =+(J40+J41+J42)*12% -> 545.76
D44: TOTAL | E44: n/a | F44: =SUM(F40:F43) -> 23764.16 | G44: =SUM(G40:G43) -> 18753.28 | H44: =SUM(H40:H43) -> 13279.84 | I44: =SUM(I40:I43) -> 8645.28 | J44: =SUM(J40:J43) -> 5093.76
D46: Tarifas Semestrales
D47: Prima Titular | E47: n/a | F47: =VLOOKUP($J$18,Tablas!$A$559:$H$621,4,TRUE) -> 7590.13 | G47: =VLOOKUP($J$18,Tablas!$A$559:$H$621,5,TRUE) -> 6569.88 | H47: =VLOOKUP($J$18,Tablas!$A$559:$H$621,6,TRUE) -> 4636.44 | I47: =VLOOKUP($J$18,Tablas!$A$559:$H$621,7,TRUE) -> 2888.5 | J47: =VLOOKUP($J$18,Tablas!$A$559:$H$621,8,TRUE) -> 1549.19
D48: Prima Cónyuge | E48: n/a | F48: =IF($G$18=1,0,(VLOOKUP($J$20,Tablas!$A$559:$H$621,4,TRUE))) -> 1603.25 | G48: =IF($G$18=1,0,(VLOOKUP($J$20,Tablas!$A$559:$H$621,5,TRUE))) -> 1242.32 | H48: =IF($G$18=1,0,(VLOOKUP($J$20,Tablas!$A$559:$H$621,6,TRUE))) -> 811.96 | I48: =IF($G$18=1,0,(VLOOKUP($J$20,Tablas!$A$559:$H$621,7,TRUE))) -> 595.72 | J48: =IF($G$18=1,0,(VLOOKUP($J$20,Tablas!$A$559:$H$621,8,TRUE))) -> 418.7
D49: Primas Hijos | E49: n/a | F49: =IF($G$20=0,0,(VLOOKUP($G$20,Tablas!$A$622:$H$624,4,TRUE))) -> 2012.41 | G49: =IF($G$20=0,0,(VLOOKUP($G$20,Tablas!$A$622:$H$624,5,TRUE))) -> 1022.37 | H49: =IF($G$20=0,0,(VLOOKUP($G$20,Tablas!$A$622:$H$624,6,TRUE))) -> 796.06 | I49: =IF($G$20=0,0,(VLOOKUP($G$20,Tablas!$A$622:$H$624,7,TRUE))) -> 567.1 | J49: =IF($G$20=0,0,(VLOOKUP($G$20,Tablas!$A$622:$H$624,8,TRUE))) -> 402.8
D50: Anexo: Complicaciones de Maternidad | E50: n/a | F50: =+IF($F$23=FALSE,0,Tablas!D$625) -> 0 | G50: =+IF($F$23=FALSE,0,Tablas!E$625) -> 0 | H50: =+IF($F$23=FALSE,0,Tablas!F$625) -> 0 | I50: =+IF($F$23=FALSE,0,Tablas!G$625) -> 0 | J50: =+IF($F$23=FALSE,0,Tablas!H$625) -> 0
D51: Anexo: Trasplante Organos | E51: n/a | F51: =IF($F$24=FALSE,0,Tablas!D$626) -> 0 | G51: =IF($F$24=FALSE,0,Tablas!E$626) -> 0 | H51: =IF($F$24=FALSE,0,Tablas!F$626) -> 0 | I51: =IF($F$24=FALSE,0,Tablas!G$626) -> 0 | J51: =IF($F$24=FALSE,0,Tablas!H$626) -> 0
D52: Anexo: Eliminacion de Deducible | E52: n/a | F52: =IF($F$25=FALSE,0,Tablas!D$627) -> 0 | G52: =IF($F$25=FALSE,0,Tablas!E$627) -> 0 | H52: =IF($F$25=FALSE,0,Tablas!F$627) -> 0 | I52: =IF($F$25=FALSE,0,Tablas!G$627) -> 0 | J52: =IF($F$25=FALSE,0,Tablas!H$627) -> 0
D53: PRIMA NETA | E53: n/a | F53: =SUM(F47:F52) -> 11205.79 | G53: =SUM(G47:G52) -> 8834.57 | H53: 6244.46 | I53: 4051.32 | J53: 2370.69
D54: =IF('INGRESO DE DATOS'!G18>0,"Descuento","") ->  | E54: n/a | F54: =IF('INGRESO DE DATOS'!$G$18>0,-(F47+F48+F49)*'INGRESO DE DATOS'!$G$18,0) -> 0 | G54: =IF('INGRESO DE DATOS'!$G$18>0,-(G47+G48+G49)*'INGRESO DE DATOS'!$G$18,0) -> 0 | H54: =IF('INGRESO DE DATOS'!$G$18>0,-(H47+H48+H49)*'INGRESO DE DATOS'!$G$18,0) -> 0 | I54: =IF('INGRESO DE DATOS'!$G$18>0,-(I47+I48+I49)*'INGRESO DE DATOS'!$G$18,0) -> 0 | J54: =IF('INGRESO DE DATOS'!$G$18>0,-(J47+J48+J49)*'INGRESO DE DATOS'!$G$18,0) -> 0
D55: Costo Administrativo Anual | E55: n/a | F55: 75 | G55: 75 | H55: 75 | I55: 75 | J55: 75
D56: IVA (12%) | E56: n/a | F56: =+(F53+F54+F55)*12% -> 1353.6948 | G56: =+(G53+G54+G55)*12% -> 1069.1484 | H56: 758.3352 | I56: 495.1584 | J56: =+(J53+J54+J55)*12% -> 293.4828
D57: TOTAL (1ra Cuota) | E57: n/a | F57: =SUM(F53:F56) -> 12634.4848 | G57: =SUM(G53:G56) -> 9978.7184 | H57: =SUM(H53:H56) -> 7077.7952 | I57: =SUM(I53:I56) -> 4621.4784 | J57: =SUM(J53:J56) -> 2739.1728
D58: TOTAL (2da Cuota) | E58: n/a | F58: =F53+F54+F56-(F55*0.12) -> 12550.4848 | G58: =G53+G54+G56-(G55*0.12) -> 9894.7184 | H58: 6993.7952 | I58: 4537.4784 | J58: =J53+J54+J56-(J55*0.12) -> 2655.1728
D60: Tarifas Trimestrales
D61: Prima Titular | E61: n/a | F61: =VLOOKUP($J$18,Tablas!$A$1065:$H$1127,4,TRUE) -> 3938.275 | G61: =VLOOKUP($J$18,Tablas!$A$1065:$H$1127,5,TRUE) -> 3408.9 | H61: =VLOOKUP($J$18,Tablas!$A$1065:$H$1127,6,TRUE) -> 2405.7 | I61: =VLOOKUP($J$18,Tablas!$A$1065:$H$1127,7,TRUE) -> 1498.75 | J61: =VLOOKUP($J$18,Tablas!$A$1065:$H$1127,8,TRUE) -> 803.825
D62: Prima Cónyuge | E62: n/a | F62: =IF($G$18=1,0,(VLOOKUP($J$20,Tablas!$A$1065:$H$1127,4,TRUE))) -> 831.875 | G62: =IF($G$18=1,0,(VLOOKUP($J$20,Tablas!$A$1065:$H$1127,5,TRUE))) -> 644.6 | H62: =IF($G$18=1,0,(VLOOKUP($J$20,Tablas!$A$1065:$H$1127,6,TRUE))) -> 421.3 | I62: =IF($G$18=1,0,(VLOOKUP($J$20,Tablas!$A$1065:$H$1127,7,TRUE))) -> 309.1 | J62: =IF($G$18=1,0,(VLOOKUP($J$20,Tablas!$A$1065:$H$1127,8,TRUE))) -> 217.25
D63: Primas Hijos | E63: n/a | F63: =IF($G$20=0,0,(VLOOKUP($G$20,Tablas!$A$1128:$H$1130,4,TRUE))) -> 1044.175 | G63: =IF($G$20=0,0,(VLOOKUP($G$20,Tablas!$A$1128:$H$1130,5,TRUE))) -> 530.475 | H63: =IF($G$20=0,0,(VLOOKUP($G$20,Tablas!$A$1128:$H$1130,6,TRUE))) -> 413.05 | I63: =IF($G$20=0,0,(VLOOKUP($G$20,Tablas!$A$1128:$H$1130,7,TRUE))) -> 294.25 | J63: =IF($G$20=0,0,(VLOOKUP($G$20,Tablas!$A$1128:$H$1130,8,TRUE))) -> 209
D64: Anexo: Complicaciones de Maternidad | E64: n/a | F64: =+IF($F$23=FALSE,0,Tablas!D$1131) -> 0 | G64: =+IF($F$23=FALSE,0,Tablas!E$1131) -> 0 | H64: =+IF($F$23=FALSE,0,Tablas!F$1131) -> 0 | I64: =+IF($F$23=FALSE,0,Tablas!G$1131) -> 0 | J64: =+IF($F$23=FALSE,0,Tablas!H$1131) -> 0
D65: Anexo: Trasplante Organos | E65: n/a | F65: =IF($F$24=FALSE,0,Tablas!D$1132) -> 0 | G65: =IF($F$24=FALSE,0,Tablas!E$1132) -> 0 | H65: =IF($F$24=FALSE,0,Tablas!F$1132) -> 0 | I65: =IF($F$24=FALSE,0,Tablas!G$1132) -> 0 | J65: =IF($F$24=FALSE,0,Tablas!H$1132) -> 0
D66: Anexo: Eliminacion de Deducible | E66: n/a | F66: =IF($F$25=FALSE,0,Tablas!D$1133) -> 0 | G66: =IF($F$25=FALSE,0,Tablas!E$1133) -> 0 | H66: =IF($F$25=FALSE,0,Tablas!F$1133) -> 0 | I66: =IF($F$25=FALSE,0,Tablas!G$1133) -> 0 | J66: =IF($F$25=FALSE,0,Tablas!H$1133) -> 0
D67: PRIMA NETA | E67: n/a | F67: =SUM(F61:F66) -> 5814.325 | G67: =SUM(G61:G66) -> 4583.975 | H67: 3240.05 | I67: 2102.1 | J67: 1230.075
D68: =IF('INGRESO DE DATOS'!G34>0,"Descuento","") ->  | E68: n/a | F68: =IF('INGRESO DE DATOS'!$G$18>0,-(F61+F62+F63)*'INGRESO DE DATOS'!$G$18,0) -> 0 | G68: =IF('INGRESO DE DATOS'!$G$18>0,-(G61+G62+G63)*'INGRESO DE DATOS'!$G$18,0) -> 0 | H68: =IF('INGRESO DE DATOS'!$G$18>0,-(H61+H62+H63)*'INGRESO DE DATOS'!$G$18,0) -> 0 | I68: =IF('INGRESO DE DATOS'!$G$18>0,-(I61+I62+I63)*'INGRESO DE DATOS'!$G$18,0) -> 0 | J68: =IF('INGRESO DE DATOS'!$G$18>0,-(J61+J62+J63)*'INGRESO DE DATOS'!$G$18,0) -> 0
D69: Costo Administrativo Anual | E69: n/a | F69: 75 | G69: 75 | H69: 75 | I69: 75 | J69: 75
D70: IVA (12%) | E70: n/a | F70: =+(F67+F68+F69)*12% -> 706.719 | G70: =+(G67+G68+G69)*12% -> 559.077 | H70: 397.806 | I70: 261.252 | J70: =+(J67+J68+J69)*12% -> 156.609
D71: TOTAL (1ra Cuota) | E71: n/a | F71: =SUM(F67:F70) -> 6596.044 | G71: =SUM(G67:G70) -> 5218.052 | H71: =SUM(H67:H70) -> 3712.856 | I71: =SUM(I67:I70) -> 2438.352 | J71: =SUM(J67:J70) -> 1461.684
D72: TOTAL (2da a 4ta Cuota) | E72: n/a | F72: =F67+F68+F70-(F69*0.12) -> 6512.044 | G72: =G67+G68+G70-(G69*0.12) -> 5134.052 | H72: 3628.856 | I72: 2354.352 | J72: =J67+J68+J70-(J69*0.12) -> 1377.684
D74: Tarifas en US $ - Efectivas partir del 1ro de enero de 2022
D75: Este presupuesto solamente tiene carácter informativo y en ningún momento expresa compromiso legal para suministrarle cobertura de seguro. La emisión de una póliza de seguro Bupa está sujeta a todas las evaluaciones de riesgo por parte de Bupa y a la recepción de todos los pagos de prima requeridos.

Sheet Resumen tarifas anuales
A1: Cotización de Seguro Médico Internacional - BUPA Guatemala
C7: Nombre del Asegurado: | D7: =+'INGRESO DE DATOS'!$D$12 -> Nombre
C9: Intermediario: | D9: =+'INGRESO DE DATOS'!$D$23 -> Agente / Agencia
C11: Fecha: | D11: =+TODAY() -> 2021-12-20 | F11: =IF('INGRESO DE DATOS'!G18>0,"Descuento","") ->  | G11: =IF('INGRESO DE DATOS'!G18>0,'INGRESO DE DATOS'!G18,"") -> 
E13: Numero de Adultos: | F13: =+'INGRESO DE DATOS'!$G$14 -> 2 | H13: Edad de Titular: | I13: =+'INGRESO DE DATOS'!$G$16 -> 65
E15: Numero de Hijos: | F15: =+'INGRESO DE DATOS'!$J$14 -> 3 | H15: Edad de Conyuge: | I15: =+'INGRESO DE DATOS'!$J$16 -> 18
C20: COMPLETE CARE
C21: Deducibles
D22: PLAN 1 | E22: PLAN 2 | F22: PLAN 3 | G22: PLAN 4 | H22: PLAN 5 | I22: PLAN 6
C23: Dentro del pais de residencia | D23: n/a | E23: 1000 | F23: 2000 | G23: 5000 | H23: 10000 | I23: 20000
C24: Fuera del pais de residencia | D24: n/a | E24: 2000 | F24: 3000 | G24: 5000 | H24: 10000 | I24: 20000
C27: Tarifas Anuales
C28: Complete Care | E28: =+Complete!F38 -> 68122.88 | F28: =+Complete!G38 -> 48135.36 | G28: =+Complete!H38 -> 35906.08 | H28: =+Complete!I38 -> 30372.16 | I28: =+Complete!J38 -> 25045.44
C31: Tarifas Semestrales
C32: Complete Care | D32: 1ra Cuota | E32: =+Complete!F49 -> 36144.6064 | F32: =+Complete!G49 -> 25551.2208 | G32: =+Complete!H49 -> 19069.7024 | H32: =+Complete!I49 -> 16136.7248 | I32: =+Complete!J49 -> 13313.5632
D33: 2da Cuota | E33: =+Complete!F50 -> 36060.6064 | F33: =+Complete!G50 -> 25467.2208 | G33: =+Complete!H50 -> 18985.7024 | H33: =+Complete!I50 -> 16052.7248 | I33: =+Complete!J50 -> 13229.5632
C35: Tarifas Trimestrales
C36: Complete Care | D36: 1ra Cuota | E36: =+Complete!F61 -> 18794.692 | F36: =+Complete!G61 -> 14984.592 | G36: =+Complete!H61 -> 11235.4088 | H36: =+Complete!I61 -> 9473.9624 | I36: =+Complete!J61 -> 7731.2256
D37: 2da a 4ta Cuota | E37: =+Complete!F62 -> 18710.692 | F37: =+Complete!G62 -> 14900.592 | G37: =+Complete!H62 -> 11151.4088 | H37: =+Complete!I62 -> 9389.9624 | I37: =+Complete!J62 -> 7647.2256
C40: SECURE CARE
C41: Deducibles
D42: PLAN 1 | E42: PLAN 2 | F42: PLAN 3 | G42: PLAN 4 | H42: PLAN 5 | I42: PLAN 6
C43: Dentro del pais de residencia | D43: n/a | E43: 1000 | F43: 2000 | G43: 5000 | H43: 10000 | I43: 20000
C44: Fuera del pais de residencia | D44: n/a | E44: 2000 | F44: 3000 | G44: 5000 | H44: 10000 | I44: 20000
C47: Tarifas Anuales
C48: Secure Care | E48: =+Secure!F41 -> 32066.72 | F48: =+Secure!G41 -> 25865.28 | G48: =+Secure!H41 -> 19000.8 | H48: =+Secure!I41 -> 16019.36 | I48: =+Secure!J41 -> 11992.96
C51: Tarifas Semestrales
C52: Secure Care | D52: 1ra Cuota | E52: =+Secure!F53 -> 17034.8416 | F52: =+Secure!G53 -> 13748.0784 | G52: =+Secure!H53 -> 10109.904 | H52: =+Secure!I53 -> 8529.7408 | I52: =+Secure!J53 -> 6395.7488
D53: 2da Cuota | E53: =+Secure!F54 -> 16950.8416 | F53: =+Secure!G54 -> 13664.0784 | G53: =+Secure!H54 -> 10025.904 | H53: =+Secure!I54 -> 8445.7408 | I53: =+Secure!J54 -> 6311.7488
C55: Tarifas Trimestrales
C56: Complete Care | D56: 1ra Cuota | E56: =+Secure!F66 -> 8879.248 | F56: =+Secure!G66 -> 7173.852 | G56: =+Secure!H66 -> 5286.12 | H56: =+Secure!I66 -> 4466.224 | I56: =+Secure!J66 -> 3358.964
D57: 2da a 4ta Cuota | E57: =+Secure!F67 -> 8795.248 | F57: =+Secure!G67 -> 7089.852 | G57: =+Secure!H67 -> 5202.12 | H57: =+Secure!I67 -> 4382.224 | I57: =+Secure!J67 -> 3274.964
C60: PREMIUM CARE
C61: Deducibles
D62: PLAN 1 | E62: PLAN 2 | F62: PLAN 3 | G62: PLAN 4 | H62: PLAN 5 | I62: PLAN 6
C63: Dentro del pais de residencia | D63: n/a | E63: 1000 | F63: 2000 | G63: 5000 | H63: 10000 | I63: 20000
C64: Fuera del pais de residencia | D64: n/a | E64: 2000 | F64: 3000 | G64: 5000 | H64: 10000 | I64: 20000
C67: Tarifas Anuales
C68: Premium Care | E68: =+Premium!F44 -> 36630.72 | F68: =+Premium!G44 -> 30148.16 | G68: =+Premium!H44 -> 25261.6 | H68: =+Premium!I44 -> 18744.32 | I68: =+Premium!J44 -> 11056.64
C71: Tarifas Semestrales
C72: Premium Care | D72: 1ra Cuota | E72: =+Premium!F57 -> 19453.7616 | F72: =+Premium!G57 -> 16018.0048 | G72: =+Premium!H57 -> 13428.128 | H72: =+Premium!I57 -> 9973.9696 | I72: =+Premium!J57 -> 5899.4992
D73: 2da Cuota | E73: =+Premium!F58 -> 19369.7616 | F73: =+Premium!G58 -> 15934.0048 | G73: =+Premium!H58 -> 13344.128 | H73: =+Premium!I58 -> 9889.9696 | I73: =+Premium!J58 -> 5815.4992
C75: Tarifas Trimestrales
C76: Premium Care | D76: 1ra Cuota | E76: =+Premium!F71 -> 10134.348 | F76: =+Premium!G71 -> 8351.644 | G76: =+Premium!H71 -> 7007.84 | H76: =+Premium!I71 -> 5215.588 | I76: =+Premium!J71 -> 3101.476
D77: 2da a 4ta Cuota | E77: =+Premium!F72 -> 10050.348 | F77: =+Premium!G72 -> 8267.644 | G77: =+Premium!H72 -> 6923.84 | H77: =+Premium!I72 -> 5131.588 | I77: =+Premium!J72 -> 3017.476
C80: CLASSIC CARE
C81: Deducibles
D82: PLAN 1 | E82: PLAN 2 | F82: PLAN 3 | G82: PLAN 4 | H82: PLAN 5 | I82: PLAN 6
C83: Dentro del pais de residencia | D83: n/a | E83: 1000 | F83: 2000 | G83: 5000 | H83: 10000 | I83: 20000
C84: Fuera del pais de residencia | D84: n/a | E84: 2000 | F84: 3000 | G84: 5000 | H84: 10000 | I84: 20000
C87: Tarifas Anuales
C88: Classic Care | E88: =+Classic!F44 -> 23764.16 | F88: =+Classic!G44 -> 18753.28 | G88: =+Classic!H44 -> 13279.84 | H88: =+Classic!I44 -> 8645.28 | I88: =+Classic!J44 -> 5093.76
C91: Tarifas Semestrales
C92: Classic Care | D92: 1ra Cuota | E92: =+Classic!$F$57 -> 12634.4848 | F92: =+Classic!$G$57 -> 9978.7184 | G92: =+Classic!$H$57 -> 7077.7952 | H92: =+Classic!$I$57 -> 4621.4784 | I92: =+Classic!$J$57 -> 2739.1728
D93: 2da Cuota | E93: =+Classic!$F$58 -> 12550.4848 | F93: =+Classic!$G$58 -> 9894.7184 | G93: =+Classic!$H$58 -> 6993.7952 | H93: =+Classic!$I$58 -> 4537.4784 | I93: =+Classic!$J$58 -> 2655.1728
C95: Tarifas Trimestrales
C96: Classic Care | D96: 1ra Cuota | E96: =+Classic!$F$71 -> 6596.044 | F96: =+Classic!$G$71 -> 5218.052 | G96: =+Classic!$H$71 -> 3712.856 | H96: =+Classic!$I$71 -> 2438.352 | I96: =+Classic!$J$71 -> 1461.684
D97: 2da a 4ta Cuota | E97: =+Classic!$F$72 -> 6512.044 | F97: =+Classic!$G$72 -> 5134.052 | G97: =+Classic!$H$72 -> 3628.856 | H97: =+Classic!$I$72 -> 2354.352 | I97: =+Classic!$J$72 -> 1377.684
C101: Tarifas en US $ - Efectivas a partir del 1ro de enero de 2022
C102: Este presupuesto solamente tiene carácter informativo y en ningún momento expresa compromiso legal para suministrarle cobertura de seguro. La emisión de una póliza de seguro Bupa está sujeta a todas las evaluaciones de riesgo por parte de Bupa y a la recepción de todos los pagos de prima requeridos.
C105: Bupa Guatemala, Compañía de Seguros, S.A.
C106: 5 Avenida 5-55 Zona 14, Europlaza World Business Center, Torre 3, Nivel 11, Guatemala
C107: PBX: 2300-8000 / www.bupasalud.com / servicioguatemala@bupalatinamerica.com

Sheet Tablas (hidden)
A2: BUPA COMPLETE GUATEMALA | J2: FACTOR SEMESTRAL : | L2: 0.53
A3: TARIFAS ANUALES | J3: FACTOR TRIMESTRAL : | L3: 0.275
A4: EDAD
C5: DW1 | D5: DW2 | E5: DW3 | F5: DW4 | G5: DW5 | H5: DW6
A6: 18 | B6: - 24 | C6: 16474 | D6: 10023 | E6: 6865 | F6: 4819 | G6: 3326 | H6: 2542 | J6: Descuento (15%) | L6: 1 | N6: 10791 | O6: 6565 | P6: 4496 | Q6: 3238 | R6: 2294 | S6: 1753 | U6: TRUE | V6: TRUE | W6: TRUE | X6: TRUE | Y6: TRUE | Z6: TRUE
A7: 25 | B7: - 29 | C7: 17299 | D7: 10501 | E7: 7622 | F7: 5355 | G7: 3649 | H7: 2804 | N7: 11330 | O7: 6878 | P7: 4992 | Q7: 3598 | R7: 2518 | S7: 1934 | U7: TRUE | V7: TRUE | W7: TRUE | X7: TRUE | Y7: TRUE | Z7: TRUE
A8: 30 | B8: - 34 | C8: 18056 | D8: 10985 | E8: 8168 | F8: 5957 | G8: 4435 | H8: 3392 | N8: 11826 | O8: 7194 | P8: 5350 | Q8: 4003 | R8: 3059 | S8: 2340 | U8: TRUE | V8: TRUE | W8: TRUE | X8: TRUE | Y8: TRUE | Z8: TRUE
A9: 35 | B9: - 39 | C9: 20181 | D9: 12290 | E9: 9131 | F9: 6690 | G9: 4954 | H9: 3783 | N9: 13218 | O9: 8049 | P9: 5980 | Q9: 4496 | R9: 3418 | S9: 2609 | U9: TRUE | V9: TRUE | W9: TRUE | X9: TRUE | Y9: TRUE | Z9: TRUE
A10: 40 | B10: - 44 | C10: 22858 | D10: 14276 | E10: 10023 | F10: 7428 | G10: 5475 | H10: 4171 | N10: 14972 | O10: 9351 | P10: 6565 | Q10: 4992 | R10: 3777 | S10: 2878 | U10: TRUE | V10: TRUE | W10: TRUE | X10: TRUE | Y10: TRUE | Z10: TRUE
A11: 45 | B11: - 49 | C11: 25536 | D11: 15927 | E11: 11190 | F11: 8295 | G11: 6127 | H11: 4693 | N11: 16726 | O11: 10432 | P11: 7329 | Q11: 5575 | R11: 4227 | S11: 3238 | U11: TRUE | V11: TRUE | W11: TRUE | X11: TRUE | Y11: TRUE | Z11: TRUE
A12: 50 | B12: - 54 | C12: 33704 | D12: 20798 | E12: 14760 | F12: 10906 | G12: 8733 | H12: 6715 | N12: 22076 | O12: 13623 | P12: 9667 | Q12: 7329 | R12: 6026 | S12: 4633 | U12: TRUE | V12: TRUE | W12: TRUE | X12: TRUE | Y12: TRUE | Z12: TRUE
A13: 55 | B13: - 59 | C13: 35830 | D13: 22170 | E13: 15719 | F13: 11641 | G13: 9317 | H13: 7104 | N13: 23469 | O13: 14521 | P13: 10296 | Q13: 7823 | R13: 6429 | S13: 4901 | U13: TRUE | V13: TRUE | W13: TRUE | X13: TRUE | Y13: TRUE | Z13: TRUE
A14: 60 | C14: 38027 | D14: 24094 | E14: 17094 | F14: 13246 | G14: 11077 | H14: 8926 | N14: 24908 | O14: 15781 | P14: 11196 | Q14: 8902 | R14: 7644 | S14: 6159 | U14: TRUE | V14: TRUE | W14: TRUE | X14: TRUE | Y14: TRUE | Z14: TRUE
A15: 61 | C15: 40841 | D15: 25877 | E15: 18331 | F15: 14183 | G15: 11925 | H15: 9580 | N15: 26752 | O15: 16949 | P15: 12006 | Q15: 9532 | R15: 8229 | S15: 6610 | U15: TRUE | V15: TRUE | W15: TRUE | X15: TRUE | Y15: TRUE | Z15: TRUE
A16: 62 | C16: 44685 | D16: 28348 | E16: 20045 | F16: 15522 | G16: 13029 | H16: 10489 | N16: 29269 | O16: 18568 | P16: 13129 | Q16: 10432 | R16: 8991 | S16: 7238 | U16: TRUE | V16: TRUE | W16: TRUE | X16: TRUE | Y16: TRUE | Z16: TRUE
A17: 63 | C17: 47500 | D17: 30133 | E17: 21347 | F17: 16526 | G17: 13880 | H17: 11141 | N17: 31113 | O17: 19737 | P17: 13982 | Q17: 11106 | R17: 9577 | S17: 7688 | U17: TRUE | V17: TRUE | W17: TRUE | X17: TRUE | Y17: TRUE | Z17: TRUE
A18: 64 | C18: 51412 | D18: 32604 | E18: 23065 | F18: 17865 | G18: 14987 | H18: 12055 | N18: 33676 | O18: 21356 | P18: 15107 | Q18: 12006 | R18: 10342 | S18: 8319 | U18: TRUE | V18: TRUE | W18: TRUE | X18: TRUE | Y18: TRUE | Z18: TRUE
A19: 65 | C19: 53879 | D19: 42627 | E19: 30133 | F19: 22612 | G19: 20003 | H19: 17004 | N19: 35292 | O19: 27921 | P19: 19737 | Q19: 15197 | R19: 13803 | S19: 11734 | U19: TRUE | V19: TRUE | W19: TRUE | X19: TRUE | Y19: TRUE | Z19: TRUE
A20: 66 | C20: 56283 | D20: 49557 | E20: 35008 | F20: 26289 | G20: 23261 | H20: 19740 | N20: 36866 | O20: 32461 | P20: 22930 | Q20: 17669 | R20: 16052 | S20: 13623 | U20: TRUE | V20: TRUE | W20: TRUE | X20: TRUE | Y20: TRUE | Z20: TRUE
A21: 67 | C21: 61500 | D21: 54088 | E21: 38234 | F21: 28696 | G21: 25410 | H21: 21566 | N21: 40284 | O21: 35429 | P21: 25043 | Q21: 19287 | R21: 17535 | S21: 14882 | U21: TRUE | V21: TRUE | W21: TRUE | X21: TRUE | Y21: TRUE | Z21: TRUE
A22: 68 | C22: 68020 | D22: 59921 | E22: 42350 | F22: 31775 | G22: 28145 | H22: 23911 | N22: 44555 | O22: 39249 | P22: 27739 | Q22: 21356 | R22: 19423 | S22: 16501 | U22: TRUE | V22: TRUE | W22: TRUE | X22: TRUE | Y22: TRUE | Z22: TRUE
A23: 69 | C23: 74812 | D23: 65894 | E23: 46539 | F23: 34987 | G23: 30946 | H23: 26254 | N23: 49004 | O23: 43162 | P23: 30483 | Q23: 23514 | R23: 21356 | S23: 18118 | U23: TRUE | V23: TRUE | W23: TRUE | X23: TRUE | Y23: TRUE | Z23: TRUE
A24: 70 | C24: 88544 | D24: 81129 | E24: 56694 | F24: 41138 | G24: 36028 | H24: 30881 | N24: 57999 | O24: 53142 | P24: 37136 | Q24: 27649 | R24: 24863 | S24: 21311 | U24: TRUE | V24: TRUE | W24: TRUE | X24: TRUE | Y24: TRUE | Z24: TRUE
A25: 71 | C25: 92045 | D25: 84287 | E25: 58894 | F25: 42747 | G25: 37462 | H25: 32120 | N25: 60292 | O25: 55210 | P25: 38577 | Q25: 28730 | R25: 25853 | S25: 22166 | U25: TRUE | V25: TRUE | W25: TRUE | X25: TRUE | Y25: TRUE | Z25: TRUE
A26: 72 | C26: 94652 | D26: 86689 | E26: 60608 | F26: 43950 | G26: 38503 | H26: 33032 | N26: 62000 | O26: 56784 | P26: 39699 | Q26: 29539 | R26: 26571 | S26: 22795 | U26: TRUE | V26: TRUE | W26: TRUE | X26: TRUE | Y26: TRUE | Z26: TRUE
A27: 73 | C27: 98083 | D27: 89847 | E27: 62806 | F27: 45558 | G27: 39935 | H27: 34269 | N27: 64248 | O27: 58852 | P27: 41139 | Q27: 30619 | R27: 27560 | S27: 23649 | U27: TRUE | V27: TRUE | W27: TRUE | X27: TRUE | Y27: TRUE | Z27: TRUE
A28: 74 | C28: 99866 | D28: 91495 | E28: 63903 | F28: 46426 | G28: 40653 | H28: 34856 | N28: 65416 | O28: 59932 | P28: 41858 | Q28: 31203 | R28: 28055 | S28: 24054 | U28: TRUE | V28: TRUE | W28: TRUE | X28: TRUE | Y28: TRUE | Z28: TRUE
A29: 75 | B29: o más | C29: 104193 | D29: 95475 | E29: 66715 | F29: 48429 | G29: 42413 | H29: 36353 | N29: 68249 | O29: 62539 | P29: 43700 | Q29: 32550 | R29: 29269 | S29: 25088 | U29: TRUE | V29: TRUE | W29: TRUE | X29: TRUE | Y29: TRUE | Z29: TRUE
A30: 1 | B30: Hijo | C30: 5561 | D30: 3504 | E30: 2541 | F30: 1944 | G30: 1631 | H30: 1174 | N30: 3641 | O30: 2294 | P30: 1664 | Q30: 1305 | R30: 1125 | S30: 809 | U30: TRUE | V30: TRUE | W30: TRUE | X30: TRUE | Y30: TRUE | Z30: TRUE
A31: 2 | B31: Hijos | C31: 8718 | D31: 5561 | E31: 4051 | F31: 3081 | G31: 2542 | H31: 1893 | N31: 5710 | O31: 3641 | P31: 2653 | Q31: 2070 | R31: 1753 | S31: 1305 | U31: TRUE | V31: TRUE | W31: TRUE | X31: TRUE | Y31: TRUE | Z31: TRUE
A32: 3 | B32: Hijos o más | C32: 12701 | D32: 8099 | E32: 5905 | F32: 4553 | G32: 3714 | H32: 2741 | N32: 8319 | O32: 5304 | P32: 3867 | Q32: 3059 | R32: 2562 | S32: 1890 | U32: TRUE | V32: TRUE | W32: TRUE | X32: TRUE | Y32: TRUE | Z32: TRUE
A33: 1 | B33: Rider Comp. Maternidad | C33: 0 | D33: 0 | E33: 0 | F33: 225 | G33: 225 | H33: 225
A34: 1 | B34: Transplante de organos | C34: 0 | D34: 0 | E34: 0 | F34: 0 | G34: 0 | H34: 0
A36: TARIFAS SEMESTRALES
A37: EDAD
C38: DW1 | D38: DW2 | E38: DW3 | F38: DW4 | G38: DW5 | H38: DW6
A39: 18 | B39: - 24 | C39: =C6*$L$2 -> 8731.22 | D39: =D6*$L$2 -> 5312.19 | E39: 3638.45 | F39: 2554.07 | G39: 1762.78 | H39: 1347.26
A40: 25 | B40: - 29 | C40: =C7*$L$2 -> 9168.47 | D40: 5565.53 | E40: 4039.66 | F40: 2838.15 | G40: 1933.97 | H40: 1486.12
A41: 30 | B41: - 34 | C41: =C8*$L$2 -> 9569.68 | D41: 5822.05 | E41: 4329.04 | F41: 3157.21 | G41: 2350.55 | H41: 1797.76
A42: 35 | B42: - 39 | C42: =C9*$L$2 -> 10695.93 | D42: 6513.7 | E42: 4839.43 | F42: 3545.7 | G42: 2625.62 | H42: 2004.99
A43: 40 | B43: - 44 | C43: =C10*$L$2 -> 12114.74 | D43: 7566.28 | E43: 5312.19 | F43: 3936.84 | G43: 2901.75 | H43: 2210.63
A44: 45 | B44: - 49 | C44: =C11*$L$2 -> 13534.08 | D44: 8441.31 | E44: 5930.7 | F44: 4396.35 | G44: 3247.31 | H44: 2487.29
A45: 50 | B45: - 54 | C45: =C12*$L$2 -> 17863.12 | D45: 11022.94 | E45: 7822.8 | F45: 5780.18 | G45: 4628.49 | H45: 3558.95
A46: 55 | B46: - 59 | C46: =C13*$L$2 -> 18989.9 | D46: 11750.1 | E46: 8331.07 | F46: 6169.73 | G46: 4938.01 | H46: 3765.12
A47: 60 | C47: =C14*$L$2 -> 20154.31 | D47: 12769.82 | E47: 9059.82 | F47: 7020.38 | G47: 5870.81 | H47: 4730.78
A48: 61 | C48: =C15*$L$2 -> 21645.73 | D48: 13714.81 | E48: 9715.43 | F48: 7516.99 | G48: 6320.25 | H48: 5077.4
A49: 62 | C49: =C16*$L$2 -> 23683.05 | D49: 15024.44 | E49: 10623.85 | F49: 8226.66 | G49: 6905.37 | H49: 5559.17
A50: 63 | C50: =C17*$L$2 -> 25175 | D50: 15970.49 | E50: 11313.91 | F50: 8758.78 | G50: 7356.4 | H50: 5904.73
A51: 64 | C51: =C18*$L$2 -> 27248.36 | D51: 17280.12 | E51: 12224.45 | F51: 9468.45 | G51: 7943.11 | H51: 6389.15
A52: 65 | C52: =C19*$L$2 -> 28555.87 | D52: 22592.31 | E52: 15970.49 | F52: 11984.36 | G52: 10601.59 | H52: 9012.12
A53: 66 | C53: =C20*$L$2 -> 29829.99 | D53: 26265.21 | E53: 18554.24 | F53: 13933.17 | G53: 12328.33 | H53: 10462.2
A54: 67 | C54: =C21*$L$2 -> 32595 | D54: 28666.64 | E54: 20264.02 | F54: 15208.88 | G54: 13467.3 | H54: 11429.98
A55: 68 | C55: =C22*$L$2 -> 36050.6 | D55: 31758.13 | E55: 22445.5 | F55: 16840.75 | G55: 14916.85 | H55: 12672.83
A56: 69 | C56: =C23*$L$2 -> 39650.36 | D56: 34923.82 | E56: 24665.67 | F56: 18543.11 | G56: 16401.38 | H56: 13914.62
A57: 70 | C57: =C24*$L$2 -> 46928.32 | D57: 42998.37 | E57: 30047.82 | F57: 21803.14 | G57: 19094.84 | H57: 16366.93
A58: 71 | C58: =C25*$L$2 -> 48783.85 | D58: 44672.11 | E58: 31213.82 | F58: 22655.91 | G58: 19854.86 | H58: 17023.6
A59: 72 | C59: =C26*$L$2 -> 50165.56 | D59: 45945.17 | E59: 32122.24 | F59: 23293.5 | G59: 20406.59 | H59: 17506.96
A60: 73 | C60: =C27*$L$2 -> 51983.99 | D60: 47618.91 | E60: 33287.18 | F60: 24145.74 | G60: 21165.55 | H60: 18162.57
A61: 74 | C61: =C28*$L$2 -> 52928.98 | D61: 48492.35 | E61: 33868.59 | F61: 24605.78 | G61: 21546.09 | H61: 18473.68
A62: 75 | B62: o más | C62: =C29*$L$2 -> 55222.29 | D62: 50601.75 | E62: 35358.95 | F62: 25667.37 | G62: 22478.89 | H62: 19267.09
A63: 1 | B63: Hijo | C63: =C30*$L$2 -> 2947.33 | D63: 1857.12 | E63: 1346.73 | F63: 1030.32 | G63: 864.43 | H63: 622.22
A64: 2 | B64: Hijos | C64: =C31*$L$2 -> 4620.54 | D64: 2947.33 | E64: 2147.03 | F64: 1632.93 | G64: 1347.26 | H64: 1003.29
A65: 3 | B65: Hijos o más | C65: =C32*$L$2 -> 6731.53 | D65: 4292.47 | E65: 3129.65 | F65: 2413.09 | G65: 1968.42 | H65: 1452.73
A66: 1 | B66: Rider Comp. Maternidad | C66: =+C33*$L$2 -> 0 | D66: 0 | E66: 0 | F66: 119.25 | G66: 119.25 | H66: 119.25
A67: 1 | B67: Transplante de organos | C67: 0 | D67: 0 | E67: 0 | F67: 0 | G67: 0 | H67: 0
A69: DIAMOND (LATINAMERICA ONLY)
A70: TARIFAS ANUALES
A71: EDAD
C72: DL1 | D72: DL2 | E72: DL3 | F72: DL4 | G72: DL5 | H72: DL6
A73: 18 | B73: - 24 | C73: 4794 | D73: 2952 | E73: 1949 | F73: 1401 | G73: 993 | H73: 779
A74: 25 | B74: - 29 | C74: 5028 | D74: 3097 | E74: 2156 | F74: 1553 | G74: 1103 | H74: 867
A75: 30 | B75: - 34 | C75: 5200 | D75: 3223 | E75: 2312 | F75: 1743 | G75: 1322 | H75: 1041
A76: 35 | B76: - 39 | C76: 5816 | D76: 3609 | E76: 2590 | F76: 1951 | G76: 1483 | H76: 1168
A77: 40 | B77: - 44 | C77: 6733 | D77: 4186 | E77: 2831 | F77: 2168 | G77: 1630 | H77: 1284
A78: 45 | B78: - 49 | C78: 7517 | D78: 4680 | E78: 3168 | F78: 2425 | G78: 1824 | H78: 1436
A79: 50 | B79: - 54 | C79: 9772 | D79: 5991 | E79: 4158 | F79: 3164 | G79: 2578 | H79: 2033
A80: 55 | B80: - 59 | C80: 10394 | D80: 6374 | E80: 4426 | F80: 3365 | G80: 2744 | H80: 2164
A81: 60 | C81: 11056 | D81: 6945 | E81: 4828 | F81: 3871 | G81: 3307 | H81: 2688
A82: 61 | C82: 11876 | D82: 7463 | E82: 5187 | F82: 4159 | G82: 3555 | H82: 2886
A83: 62 | C83: 12994 | D83: 8172 | E83: 5684 | F83: 4557 | G83: 3892 | H83: 3162
A84: 63 | C84: 13812 | D84: 8687 | E84: 6042 | F84: 4844 | G84: 4139 | H84: 3362
A85: 64 | C85: 14936 | D85: 9396 | E85: 6539 | F85: 5242 | G85: 4475 | H85: 3639
A86: 65 | C86: 15651 | D86: 12288 | E86: 8530 | F86: 6629 | G86: 5974 | H86: 5139
A87: 66 | C87: 16363 | D87: 14275 | E87: 9911 | F87: 7703 | G87: 6942 | H87: 5968
A88: 67 | C88: 17867 | D88: 15595 | E88: 10826 | F88: 8416 | G88: 7581 | H88: 6521
A89: 68 | C89: 19780 | D89: 17268 | E89: 11986 | F89: 9320 | G89: 8398 | H89: 7220
A90: 69 | C90: 21758 | D90: 18999 | E90: 13190 | F90: 10254 | G90: 9240 | H90: 7945
A91: 70 | C91: 25748 | D91: 23384 | E91: 16061 | F91: 12071 | G91: 10768 | H91: 9345
A92: 71 | C92: 26759 | D92: 24303 | E92: 16691 | F92: 12545 | G92: 11190 | H92: 9716
A93: 72 | C93: 27512 | D93: 24990 | E93: 17164 | F93: 12900 | G93: 11507 | H93: 9987
A94: 73 | C94: 28525 | D94: 25911 | E94: 17793 | F94: 13375 | G94: 11931 | H94: 10356
A95: 74 | C95: 29026 | D95: 26368 | E95: 18111 | F95: 13609 | G95: 12143 | H95: 10540
A96: 75 | B96: o más | C96: 30287 | D96: 27515 | E96: 18898 | F96: 14204 | G96: 12670 | H96: 11001
A97: 1 | B97: Hijo | C97: 1660 | D97: 1027 | E97: 758 | F97: 629 | G97: 527 | H97: 413
A98: 2 | B98: Hijos | C98: 2608 | D98: 1634 | E98: 1204 | F98: 999 | G98: 841 | H98: 656
A99: 3 | B99: Hijos o más | C99: 3798 | D99: 2395 | E99: 1766 | F99: 1465 | G99: 1234 | H99: 961
A100: 1 | B100: Rider Comp. Maternidad | C100: 0 | D100: 0 | E100: 0 | F100: 225 | G100: 225 | H100: 225
A101: 1 | B101: Transplante de organos | C101: 0 | D101: 0 | E101: 0 | F101: 0 | G101: 0 | H101: 0
A103: TARIFAS SEMESTRALES
A104: EDAD
C105: DL1 | D105: DL2 | E105: DL3 | F105: DL4 | G105: DL5 | H105: DL6
A106: 18 | B106: - 24 | C106: =+C73*$L$2 -> 2540.82 | D106: 1564.56 | E106: 1032.97 | F106: 742.53 | G106: 526.29 | H106: 412.87
A107: 25 | B107: - 29 | C107: 2664.84 | D107: 1641.41 | E107: 1142.68 | F107: 823.09 | G107: 584.59 | H107: 459.51
A108: 30 | B108: - 34 | C108: 2756 | D108: 1708.19 | E108: 1225.36 | F108: 923.79 | G108: 700.66 | H108: 551.73
A109: 35 | B109: - 39 | C109: 3082.48 | D109: 1912.77 | E109: 1372.7 | F109: 1034.03 | G109: 785.99 | H109: 619.04
A110: 40 | B110: - 44 | C110: 3568.49 | D110: 2218.58 | E110: 1500.43 | F110: 1149.04 | G110: 863.9 | H110: 680.52
A111: 45 | B111: - 49 | C111: 3984.01 | D111: 2480.4 | E111: 1679.04 | F111: 1285.25 | G111: 966.72 | H111: 761.08
A112: 50 | B112: - 54 | C112: 5179.16 | D112: 3175.23 | E112: 2203.74 | F112: 1676.92 | G112: 1366.34 | H112: 1077.49
A113: 55 | B113: - 59 | C113: 5508.82 | D113: 3378.22 | E113: 2345.78 | F113: 1783.45 | G113: 1454.32 | H113: 1146.92
A114: 60 | C114: 5859.68 | D114: 3680.85 | E114: 2558.84 | F114: 2051.63 | G114: 1752.71 | H114: 1424.64
A115: 61 | C115: 6294.28 | D115: 3955.39 | E115: 2749.11 | F115: 2204.27 | G115: 1884.15 | H115: 1529.58
A116: 62 | C116: =+C83*$L$2 -> 6886.82 | D116: 4331.16 | E116: 3012.52 | F116: 2415.21 | G116: 2062.76 | H116: 1675.86
A117: 63 | C117: 7320.36 | D117: 4604.11 | E117: 3202.26 | F117: 2567.32 | G117: 2193.67 | H117: 1781.86
A118: 64 | C118: 7916.08 | D118: 4979.88 | E118: 3465.67 | F118: 2778.26 | G118: 2371.75 | H118: 1928.67
A119: 65 | C119: 8295.03 | D119: 6512.64 | E119: 4520.9 | F119: 3513.37 | G119: 3166.22 | H119: 2723.67
A120: 66 | C120: 8672.39 | D120: 7565.75 | E120: 5252.83 | F120: 4082.59 | G120: 3679.26 | H120: 3163.04
A121: 67 | C121: 9469.51 | D121: 8265.35 | E121: 5737.78 | F121: 4460.48 | G121: 4017.93 | H121: 3456.13
A122: 68 | C122: 10483.4 | D122: 9152.04 | E122: 6352.58 | F122: 4939.6 | G122: 4450.94 | H122: 3826.6
A123: 69 | C123: 11531.74 | D123: 10069.47 | E123: 6990.7 | F123: 5434.62 | G123: 4897.2 | H123: 4210.85
A124: 70 | C124: 13646.44 | D124: 12393.52 | E124: 8512.33 | F124: 6397.63 | G124: 5707.04 | H124: 4952.85
A125: 71 | C125: 14182.27 | D125: 12880.59 | E125: 8846.23 | F125: 6648.85 | G125: 5930.7 | H125: 5149.48
A126: 72 | C126: =+C93*$L$2 -> 14581.36 | D126: 13244.7 | E126: 9096.92 | F126: 6837 | G126: 6098.71 | H126: 5293.11
A127: 73 | C127: 15118.25 | D127: 13732.83 | E127: 9430.29 | F127: 7088.75 | G127: 6323.43 | H127: 5488.68
A128: 74 | C128: 15383.78 | D128: 13975.04 | E128: 9598.83 | F128: 7212.77 | G128: 6435.79 | H128: 5586.2
A129: 75 | B129: o más | C129: 16052.11 | D129: 14582.95 | E129: 10015.94 | F129: 7528.12 | G129: 6715.1 | H129: 5830.53
A130: 1 | B130: Hijo | C130: 879.8 | D130: 544.31 | E130: 401.74 | F130: 333.37 | G130: 279.31 | H130: 218.89
A131: 2 | B131: Hijos | C131: 1382.24 | D131: 866.02 | E131: 638.12 | F131: 529.47 | G131: 445.73 | H131: 347.68
A132: 3 | B132: Hijos o más | C132: 2012.94 | D132: 1269.35 | E132: 935.98 | F132: 776.45 | G132: 654.02 | H132: 509.33
A133: 1 | B133: Rider Comp. Maternidad | C133: 0 | D133: 0 | E133: 0 | F133: 119.25 | G133: 119.25 | H133: 119.25
A134: 1 | B134: Transplante de organos | C134: 0 | D134: 0 | E134: 0 | F134: 0 | G134: 0 | H134: 0
A136: BUPA SECURE GUATEMALA
A137: TARIFAS ANUALES
A138: EDAD
C139: CW1 | D139: CW2 | E139: CW3 | F139: CW4 | G139: CW5 | H139: CW6
A140: 18 | B140: - 24 | C140: 5810 | D140: 4901 | E140: 3837 | F140: 2861 | G140: 2432 | H140: 1822 | J140: TRUE | K140: TRUE | L140: TRUE | M140: TRUE | N140: TRUE | O140: TRUE
A141: 25 | B141: - 29 | C141: 6446 | D141: 5382 | E141: 4317 | F141: 3220 | G141: 2685 | H141: 2026 | J141: TRUE | K141: TRUE | L141: TRUE | M141: TRUE | N141: TRUE | O141: TRUE
A142: 30 | B142: - 34 | C142: 7409 | D142: 6182 | E142: 5063 | F142: 3741 | G142: 3138 | H142: 2382 | J142: TRUE | K142: TRUE | L142: TRUE | M142: TRUE | N142: TRUE | O142: TRUE
A143: 35 | B143: - 39 | C143: 8205 | D143: 6822 | E143: 5702 | F143: 4159 | G143: 3493 | H143: 2630 | J143: TRUE | K143: TRUE | L143: TRUE | M143: TRUE | N143: TRUE | O143: TRUE
A144: 40 | B144: - 44 | C144: 9272 | D144: 7618 | E144: 6502 | F144: 4679 | G144: 3949 | H144: 2988 | J144: TRUE | K144: TRUE | L144: TRUE | M144: TRUE | N144: TRUE | O144: TRUE
A145: 45 | B145: - 49 | C145: 10762 | D145: 8793 | E145: 7618 | F145: 5456 | G145: 4608 | H145: 3443 | J145: TRUE | K145: TRUE | L145: TRUE | M145: TRUE | N145: TRUE | O145: TRUE
A146: 50 | B146: - 54 | C146: 11774 | D146: 9593 | E146: 8367 | F146: 5977 | G146: 5013 | H146: 3798 | J146: TRUE | K146: TRUE | L146: TRUE | M146: TRUE | N146: TRUE | O146: TRUE
A147: 55 | B147: - 59 | C147: 13853 | D147: 11295 | E147: 10014 | F147: 7066 | G147: 5974 | H147: 4457 | J147: TRUE | K147: TRUE | L147: TRUE | M147: TRUE | N147: TRUE | O147: TRUE
A148: 60 | C148: 14652 | D148: 11829 | E148: 10709 | F148: 7481 | G148: 6330 | H148: 4709 | J148: TRUE | K148: TRUE | L148: TRUE | M148: TRUE | N148: TRUE | O148: TRUE
A149: 61 | C149: 16463 | D149: 13320 | E149: 12041 | F149: 8470 | G149: 7088 | H149: 5316 | J149: TRUE | K149: TRUE | L149: TRUE | M149: TRUE | N149: TRUE | O149: TRUE
A150: 62 | C150: 18327 | D150: 14810 | E150: 13373 | F150: 9405 | G150: 7898 | H150: 5923 | J150: TRUE | K150: TRUE | L150: TRUE | M150: TRUE | N150: TRUE | O150: TRUE
A151: 63 | C151: 20138 | D151: 16252 | E151: 14705 | F151: 10339 | G151: 8708 | H151: 6529 | J151: TRUE | K151: TRUE | L151: TRUE | M151: TRUE | N151: TRUE | O151: TRUE
A152: 64 | C152: 22002 | D152: 17741 | E152: 16089 | F152: 11272 | G152: 9514 | H152: 7138 | J152: TRUE | K152: TRUE | L152: TRUE | M152: TRUE | N152: TRUE | O152: TRUE
A153: 65 | C153: 22059 | D153: 17795 | E153: 16196 | F153: 11378 | G153: 9569 | H153: 7138 | J153: TRUE | K153: TRUE | L153: TRUE | M153: TRUE | N153: TRUE | O153: TRUE
A154: 66 | C154: 22162 | D154: 17795 | E154: 16356 | F154: 11428 | G154: 9618 | H154: 7138 | J154: TRUE | K154: TRUE | L154: TRUE | M154: TRUE | N154: TRUE | O154: TRUE
A155: 67 | C155: 24610 | D155: 19764 | E155: 18220 | F155: 12675 | G155: 10679 | H155: 7949 | J155: TRUE | K155: TRUE | L155: TRUE | M155: TRUE | N155: TRUE | O155: TRUE
A156: 68 | C156: 27064 | D156: 21735 | E156: 20031 | F156: 13973 | G156: 11744 | H156: 8760 | J156: TRUE | K156: TRUE | L156: TRUE | M156: TRUE | N156: TRUE | O156: TRUE
A157: 69 | C157: 28343 | D157: 22748 | E157: 20938 | F157: 14599 | G157: 12300 | H157: 9164 | J157: TRUE | K157: TRUE | L157: TRUE | M157: TRUE | N157: TRUE | O157: TRUE
A158: 70 | C158: 28502 | D158: 22802 | E158: 21258 | F158: 14754 | G158: 12399 | H158: 9212 | J158: TRUE | K158: TRUE | L158: TRUE | M158: TRUE | N158: TRUE | O158: TRUE
A159: 71 | C159: 32123 | D159: 25628 | E159: 23975 | F159: 16622 | G159: 13970 | H159: 10379 | J159: TRUE | K159: TRUE | L159: TRUE | M159: TRUE | N159: TRUE | O159: TRUE
A160: 72 | C160: 35694 | D160: 28502 | E160: 26639 | F160: 18439 | G160: 15487 | H160: 11540 | J160: TRUE | K160: TRUE | L160: TRUE | M160: TRUE | N160: TRUE | O160: TRUE
A161: 73 | C161: 39263 | D161: 31380 | E161: 29300 | F161: 20312 | G161: 17056 | H161: 12705 | J161: TRUE | K161: TRUE | L161: TRUE | M161: TRUE | N161: TRUE | O161: TRUE
A162: 74 | C162: 42831 | D162: 34203 | E162: 31965 | F162: 22179 | G162: 18624 | H162: 13870 | J162: TRUE | K162: TRUE | L162: TRUE | M162: TRUE | N162: TRUE | O162: TRUE
A163: 75 | B163: o más | C163: 46773 | D163: 37293 | E163: 35056 | F163: 24257 | G163: 20346 | H163: 15135 | J163: TRUE | K163: TRUE | L163: TRUE | M163: TRUE | N163: TRUE | O163: TRUE
A164: 1 | B164: Hijo | C164: 2612 | D164: 2344 | E164: 1388 | F164: 1145 | G164: 964 | H164: 712 | J164: TRUE | K164: TRUE | L164: TRUE | M164: TRUE | N164: TRUE | O164: TRUE
A165: 2 | B165: Hijos | C165: 4317 | D165: 3998 | E165: 2082 | F165: 1820 | G165: 1520 | H165: 1115 | J165: TRUE | K165: TRUE | L165: TRUE | M165: TRUE | N165: TRUE | O165: TRUE
A166: 3 | B166: Hijos o más | C166: 6288 | D166: 5860 | E166: 2986 | F166: 2651 | G166: 2227 | H166: 1673 | J166: TRUE | K166: TRUE | L166: TRUE | M166: TRUE | N166: TRUE | O166: TRUE
A167: 1 | B167: Rider Comp. Maternidad | C167: 0 | D167: 225 | E167: 225 | F167: 225 | G167: 225 | H167: 225
A168: 1 | B168: Transplante de organos | C168: 0 | D168: 0 | E168: 0 | F168: 0 | G168: 0 | H168: 0
A170: TARIFAS SEMESTRALES
A171: EDAD
C172: CW1 | D172: CW2 | E172: CW3 | F172: CW4 | G172: CW5 | H172: CW6
A173: 18 | B173: - 24 | C173: =C140*$L$2 -> 3079.3 | D173: =D140*$L$2 -> 2597.53 | E173: 2033.61 | F173: 1516.33 | G173: 1288.96 | H173: 965.66
A174: 25 | B174: - 29 | C174: =C141*$L$2 -> 3416.38 | D174: 2852.46 | E174: 2288.01 | F174: 1706.6 | G174: 1423.05 | H174: 1073.78
A175: 30 | B175: - 34 | C175: =C142*$L$2 -> 3926.77 | D175: 3276.46 | E175: 2683.39 | F175: 1982.73 | G175: 1663.14 | H175: 1262.46
A176: 35 | B176: - 39 | C176: =C143*$L$2 -> 4348.65 | D176: 3615.66 | E176: 3022.06 | F176: 2204.27 | G176: 1851.29 | H176: 1393.9
A177: 40 | B177: - 44 | C177: =C144*$L$2 -> 4914.16 | D177: 4037.54 | E177: 3446.06 | F177: 2479.87 | G177: 2092.97 | H177: 1583.64
A178: 45 | B178: - 49 | C178: =C145*$L$2 -> 5703.86 | D178: 4660.29 | E178: 4037.54 | F178: 2891.68 | G178: 2442.24 | H178: 1824.79
A179: 50 | B179: - 54 | C179: =C146*$L$2 -> 6240.22 | D179: 5084.29 | E179: 4434.51 | F179: 3167.81 | G179: 2656.89 | H179: 2012.94
A180: 55 | B180: - 59 | C180: =C147*$L$2 -> 7342.09 | D180: 5986.35 | E180: 5307.42 | F180: 3744.98 | G180: 3166.22 | H180: 2362.21
A181: 60 | C181: =C148*$L$2 -> 7765.56 | D181: 6269.37 | E181: 5675.77 | F181: 3964.93 | G181: 3354.9 | H181: 2495.77
A182: 61 | C182: =C149*$L$2 -> 8725.39 | D182: 7059.6 | E182: 6381.73 | F182: 4489.1 | G182: 3756.64 | H182: 2817.48
A183: 62 | C183: =C150*$L$2 -> 9713.31 | D183: 7849.3 | E183: 7087.69 | F183: 4984.65 | G183: 4185.94 | H183: 3139.19
A184: 63 | C184: =C151*$L$2 -> 10673.14 | D184: 8613.56 | E184: 7793.65 | F184: 5479.67 | G184: 4615.24 | H184: 3460.37
A185: 64 | C185: =C152*$L$2 -> 11661.06 | D185: 9402.73 | E185: 8527.17 | F185: 5974.16 | G185: 5042.42 | H185: 3783.14
A186: 65 | C186: =C153*$L$2 -> 11691.27 | D186: 9431.35 | E186: 8583.88 | F186: 6030.34 | G186: 5071.57 | H186: 3783.14
A187: 66 | C187: =C154*$L$2 -> 11745.86 | D187: 9431.35 | E187: 8668.68 | F187: 6056.84 | G187: 5097.54 | H187: 3783.14
A188: 67 | C188: =C155*$L$2 -> 13043.3 | D188: 10474.92 | E188: 9656.6 | F188: 6717.75 | G188: 5659.87 | H188: 4212.97
A189: 68 | C189: =C156*$L$2 -> 14343.92 | D189: 11519.55 | E189: 10616.43 | F189: 7405.69 | G189: 6224.32 | H189: 4642.8
A190: 69 | C190: =C157*$L$2 -> 15021.79 | D190: 12056.44 | E190: 11097.14 | F190: 7737.47 | G190: 6519 | H190: 4856.92
A191: 70 | C191: =C158*$L$2 -> 15106.06 | D191: 12085.06 | E191: 11266.74 | F191: 7819.62 | G191: 6571.47 | H191: 4882.36
A192: 71 | C192: =C159*$L$2 -> 17025.19 | D192: 13582.84 | E192: 12706.75 | F192: 8809.66 | G192: 7404.1 | H192: 5500.87
A193: 72 | C193: =C160*$L$2 -> 18917.82 | D193: 15106.06 | E193: 14118.67 | F193: 9772.67 | G193: 8208.11 | H193: 6116.2
A194: 73 | C194: =C161*$L$2 -> 20809.39 | D194: 16631.4 | E194: 15529 | F194: 10765.36 | G194: 9039.68 | H194: 6733.65
A195: 74 | C195: =C162*$L$2 -> 22700.43 | D195: 18127.59 | E195: 16941.45 | F195: 11754.87 | G195: 9870.72 | H195: 7351.1
A196: 75 | B196: o más | C196: =C163*$L$2 -> 24789.69 | D196: 19765.29 | E196: 18579.68 | F196: 12856.21 | G196: 10783.38 | H196: 8021.55
A197: 1 | B197: Hijo | C197: =C164*$L$2 -> 1384.36 | D197: 1242.32 | E197: 735.64 | F197: 606.85 | G197: 510.92 | H197: 377.36
A198: 2 | B198: Hijos | C198: =C165*$L$2 -> 2288.01 | D198: 2118.94 | E198: 1103.46 | F198: 964.6 | G198: 805.6 | H198: 590.95
A199: 3 | B199: Hijos o más | C199: =C166*$L$2 -> 3332.64 | D199: 3105.8 | E199: 1582.58 | F199: 1405.03 | G199: 1180.31 | H199: 886.69
A200: 1 | B200: Rider Comp. Maternidad | C200: =+C167*$L$2 -> 0 | D200: 119.25 | E200: 119.25 | F200: 119.25 | G200: 119.25 | H200: 119.25
A201: 1 | B201: Transplante de organos | C201: 0 | D201: 0 | E201: 0 | F201: 0 | G201: 0 | H201: 0
A203: COMPLETE (LATINAMERICA ONLY)
A204: TARIFAS ANUALES
A205: EDAD
C206: CL1 | D206: CL2 | E206: CL3 | F206: CL4 | G206: CL5 | H206: CL6
A207: 18 | B207: - 24 | C207: 4108 | D207: 2493 | E207: 1711 | F207: 1222 | G207: 864 | H207: 656
... 913 more rows
